Cogmind - Beta 16 @@@ ROGUE MODE // 2025.11.09 @ 13:03:24 Player: chebyrekser Result: Establishing 0b11! Performance ------------- Evolutions (9) 4500 Regions Visited (27) 5400 Robots Destroyed (291) 1455 Value Destroyed (16399) 16399 Prototype IDs (391) 7820 Alien Tech Used (0) 0 Bonus (38788) 38788 TOTAL SCORE: 74362 Bonus ------- High Alert Combat Kills 1339 Follower Combat Kills 4212 Destroyed Unchained 1000 Awakened Behemoth Slayer 1000 Network Hubs Disabled 200 Registered with UFD 300 Met Optimus in HQ 500 Destroyed Z-Imprinter 1000 Triggered Deep Caves Wall 500 Exposed GOLEM Chamber 500 MAIN.C Attacked Warlord 500 Warlord Defense Kills 2014 Built Enhanced Grunts 300 A7 Reached Mainframe 300 Met R17 at Research 2000 Destroyed MAIN.C Guards 500 Met MAIN.C 5000 Destroyed MAIN.C Shell 5000 Destroyed MAIN.C 10000 Win 3000 Friendly Fire -377 Cogmind --------- Core Integrity 1527/1600 Matter 283/300 Energy 668/700 System Corruption 11% Temperature Cool (14) Movement Treading (126) Location 0b11 Command Parts ------- > --- POWER (2) -------- Vortex Chain Reactor > --- PROPULSION (7) --- Biometal Medium Treads Advanced Heavy Treads Advanced Heavy Treads DW-4LL's Griptreads > --- UTILITY (10) ----- Improved Cooling System Advanced Coolant Injector Huge Storage Unit Quantum Capacitor Improved Weapon Shielding Centrium Medium Armor Plating > --- WEAPON (6) ------- Compact HERF Cannon Enhanced Hardcell Cannon Enhanced Hardcell Cannon Enhanced Hardcell Cannon > --- INVENTORY (25) --- Quantum Reactor Heavy Treads Cooling System Experimental Cooling System Advanced Coolant Injector Advanced Energy Well (500) High-capacity Matter Pod (200) Advanced Matter Compressor (400) Particle Accelerator Advanced Weapon Cycler Advanced Transmission Jammer Improved Remote Shield Hacking Drone Bay (1/1) BFG-9k Vortex Edition (36) Helical Railgun DW-4LL's Megashotty Hypercooled Linear Accelerator Gamma Bomb Array CR-A16's Behemoth Slayer Peak State ------------ > --- POWER ------------ Vortex Chain Reactor > --- PROPULSION ------- Biometal Medium Treads Advanced Heavy Treads Advanced Heavy Treads DW-4LL's Griptreads > --- UTILITY ---------- Improved Cooling System Advanced Coolant Injector Huge Storage Unit Particle Accelerator Quantum Capacitor Improved Weapon Shielding Improved Weapon Shielding Centrium Medium Armor Plating Centrium Medium Armor Plating > --- WEAPON ----------- BFG-9k Vortex Edition > --- INVENTORY -------- Quantum Reactor Heavy Treads Cooling System Experimental Cooling System Advanced Coolant Injector Advanced Energy Well High-capacity Matter Pod Advanced Matter Compressor Advanced Weapon Cycler Advanced Transmission Jammer Layered Medium Armor Plating Improved Remote Shield Hacking Drone Bay Compact HERF Cannon Helical Railgun DW-4LL's Megashotty Enhanced Hardcell Cannon Enhanced Hardcell Cannon Enhanced Hardcell Cannon Hypercooled Linear Accelerator Gamma Bomb Array CR-A16's Behemoth Slayer [Rating: 233] Favorites ----------- Power Assembled Flux Generator Engine Ion Engine Power Core Neutrino Core Reactor Assembled Flux Generator Propulsion Assembled Alloy Leg Treads Light Treads Leg Assembled Alloy Leg Wheel Wheel Hover Unit Zionite Glidesys II Flight Unit Cooled Cesium-ion Thruster Utility Huge Storage Unit Device Seismic Detector Storage Huge Storage Unit Processor Enhanced Optical Array Hackware Makeshift Hacking Suite Protection Assembled Alloy Armor Weapon Assembled Focal Cannon Energy Gun Medium Laser Energy Cannon Assembled Focal Cannon Ballistic Gun Subdweller Machine Gun Ballistic Cannon Enhanced Hardcell Cannon Launcher Gamma Bomb Array Special Weapon Mining Laser Slashing Weapon Katana Piercing Weapon CR-A16's Pointy Stick Build | -11 -10 -10 -8 -8 -6 -6 -6 -6 -6 -5 -5 -5 -5 -5 -4 -4 -4 -4 -4 -4 -3 -3 -3 -2 -2 -1 -1 ------- Run | Yrd Mat Sub Rec Scr Fac Low Low Zio Dee Pro Fac Upp Upp War Pro Fac Ext Cet Arc Hub Res Arm Lab Res Qua Acc Com Slots Evolved 18 | . . . . . 8 . . . . . 2 . . . . 2 . . . . 2 . . 2 . 2 . Power 1 | . . . . . . . . . . . 1 . . . . . . . . . . . . . . . . Propulsion 5 | . . . . . 1 . . . . . . . . . . 1 . . . . 2 . . 1 . . . Utility 8 | . . . . . 6 . . . . . 1 . . . . 1 . . . . . . . . . . . Weapon 4 | . . . . . 1 . . . . . . . . . . . . . . . . . . 1 . 2 . Parts Attached 198 | 8 8 13 2 6 18 . 4 5 31 6 12 5 1 10 1 3 1 2 . 2 4 16 . 5 18 4 13 Power 14 | 1 1 1 . . 1 . 1 . 5 . 3 . . . . . . . . . . . . . 1 . . Engine 5 | 1 1 1 . . . . . . 2 . . . . . . . . . . . . . . . . . . Core 6 | . . . . . 1 . 1 . 1 . 3 . . . . . . . . . . . . . . . . Reactor 3 | . . . . . . . . . 2 . . . . . . . . . . . . . . . 1 . . Propulsion 39 | 4 1 3 . . 4 . . . 6 2 3 . . 3 . . . . . 1 2 4 . 1 4 . 1 Treads 9 | 2 1 2 . . . . . . . . . . . . . . . . . . . . . . 3 . 1 Leg 17 | . . . . . . . . . 2 1 3 . . 2 . . . . . 1 2 4 . 1 1 . . Wheel 8 | 2 . 1 . . 4 . . . . 1 . . . . . . . . . . . . . . . . . Hover 1 | . . . . . . . . . 1 . . . . . . . . . . . . . . . . . . Flight 4 | . . . . . . . . . 3 . . . . 1 . . . . . . . . . . . . . Utility 92 | 2 2 3 1 1 8 . 2 1 15 2 3 4 1 6 1 2 . 2 . 1 2 9 . 4 11 2 7 Device 47 | 1 1 1 1 1 3 . 1 1 4 1 2 2 1 4 . . . 1 . 1 1 7 . 3 6 1 3 Storage 8 | 1 1 . . . 1 . . . 1 . . . . . . . . . . . . 1 . . 2 . 1 Processor 5 | . . . . . . . 1 . . . . . . 1 . 1 . . . . . 1 . . 1 . . Hackware 5 | . . . . . 2 . . . 3 . . . . . . . . . . . . . . . . . . Protection 27 | . . 2 . . 2 . . . 7 1 1 2 . 1 1 1 . 1 . . 1 . . 1 2 1 3 Artifact . | . . . . . . . . . . . . . . . . . . . . . . . . . . . . Weapon 53 | 1 4 6 1 5 5 . 1 4 5 2 3 1 . 1 . 1 1 . . . . 3 . . 2 2 5 Energy Gun 9 | 1 3 1 . . 1 . . . 2 . . . . 1 . . . . . . . . . . . . . Energy Cannon 10 | . . 1 . . . . . . 2 1 2 1 . . . . 1 . . . . . . . 1 . 1 Ballistic Gun 10 | . . 1 1 2 2 . 1 . . . . . . . . . . . . . . 2 . . . . 1 Ballistic Cannon 8 | . . 2 . . 1 . . . . . . . . . . . . . . . . . . . 1 1 3 Launcher 4 | . . 1 . . . . . . . 1 . . . . . . . . . . . 1 . . . 1 . Special Weapon 9 | . 1 . . 2 1 . . 4 . . . . . . . 1 . . . . . . . . . . . Impact Weapon . | . . . . . . . . . . . . . . . . . . . . . . . . . . . . Slashing Weapon 2 | . . . . 1 . . . . 1 . . . . . . . . . . . . . . . . . . Piercing Weapon 1 | . . . . . . . . . . . 1 . . . . . . . . . . . . . . . . Special Melee Weapon . | . . . . . . . . . . . . . . . . . . . . . . . . . . . . Unidentified Prototypes 35 | . . . . . . . . 2 9 . . . . 9 . . . 1 . . 1 5 . . 5 . 3 Corrupted Parts 2 | . . . . . . . . . . . . . . . . . . . . . . . . . 2 . . System Corruption 14 | . . . . . . . . . . . . . . . . . . . . . . . . . 14 . . Parts Lost 36 | . 2 4 . . . . . . 6 . 7 . . . . . . . . 1 1 5 . . 2 1 7 Power 5 | . 1 1 . . . . . . 1 . 2 . . . . . . . . . . . . . . . . Propulsion 6 | . . 2 . . . . . . 1 . 2 . . . . . . . . . . . . . 1 . . Utility 19 | . . . . . . . . . 4 . 2 . . . . . . . . 1 1 3 . . 1 1 6 Weapon 6 | . 1 1 . . . . . . . . 1 . . . . . . . . . . 2 . . . . 1 Highest Loss Streak 4 | . 2 1 . . . . . . 2 . 4 . . . . . . . . 1 1 1 . . 1 1 4 To Critical Strikes . | . . . . . . . . . . . . . . . . . . . . . . . . . . . . Average Backups 19 | 6 18 23 23 21 21 22 20 19 15 17 19 14 16 19 18 17 19 19 19 18 17 17 18 17 17 19 19 Power 1 | . . . 1 1 1 1 1 1 1 . . 1 1 1 1 1 1 1 1 1 1 1 1 1 . . 1 Propulsion 3 | 3 5 6 5 4 6 5 4 4 2 3 4 2 2 2 2 1 2 2 1 1 . . 1 . . . . Utility 8 | . 7 10 10 8 4 7 6 6 5 7 8 6 7 9 9 8 10 11 11 10 11 10 11 11 11 11 10 Weapon 6 | 2 5 6 7 6 7 7 6 6 5 6 7 5 6 5 6 5 6 5 5 5 4 5 5 5 5 7 7 Tool/Special . | . . . . . . . . . . . . . . . . . . . . . . . . . . . . Unused Backups 96 | 1 4 7 1 21 8 2 4 3 5 2 2 8 . 6 . 4 . 1 1 . . 5 . 1 4 . 6 Power 13 | . 1 . . 3 2 . . . 1 1 . 1 . 1 . . . . . . . 1 . 1 . . 1 Propulsion 21 | 1 . 1 . 4 2 1 2 . . . 2 1 . 1 . 1 . . 1 . . 1 . . 1 . 2 Utility 40 | . 3 1 1 12 2 . 1 2 2 1 . 4 . 2 . 3 . . . . . 2 . . 1 . 3 Weapon 22 | . . 5 . 2 2 1 1 1 2 . . 2 . 2 . . . 1 . . . 1 . . 2 . . Tool/Special . | . . . . . . . . . . . . . . . . . . . . . . . . . . . . Average Slot Usage (%) 88 | . 98 99 99 92 90 93 98 100 73 81 86 88 88 86 87 88 89 89 89 88 85 89 89 85 87 76 58 Engine 4 | . 14 14 14 13 1 . . . . 6 2 . . . . . . . . . . . . . . . . Core 1 | . . . . . 4 6 6 6 2 . 5 4 . . . . . . . . . . . . . . . Reactor 2 | . . . . . . . . . 2 . . 3 5 5 5 5 5 5 5 5 4 4 3 4 4 4 4 Treads 4 | . 12 19 13 . . . . . . . . . . . . . . . . . . . . . . 12 15 Leg 9 | . . . . . . . . . 5 1 11 16 17 16 17 20 21 21 21 21 23 27 28 30 28 4 . Wheel 8 | . 15 8 14 27 19 20 20 20 8 6 4 . . . . . . . . . . . . . . . . Device 15 | . 14 11 6 13 18 19 18 20 6 12 21 22 22 17 22 25 21 21 18 18 18 16 18 12 6 12 13 Storage 9 | . 14 14 14 13 6 6 6 6 4 6 5 7 11 11 11 10 10 10 10 10 9 9 9 8 8 8 5 Processor 4 | . . . . . . . 5 6 6 6 5 5 5 9 11 10 10 10 10 10 9 9 9 8 7 8 1 Hackware 3 | . . . . . 11 13 13 13 10 13 11 8 5 2 . . . . . . . . . . . . . Protection 4 | . . 2 7 . 7 6 6 6 11 8 2 . . 2 . . 4 4 7 7 4 6 4 5 12 7 8 Energy Gun 2 | . 23 4 . . 3 . . . . 6 2 . . . . . . . . . . . . . . . . Energy Cannon 6 | . . 2 . . 2 6 . . 1 3 5 13 17 14 16 14 15 15 15 14 13 12 13 13 14 12 3 Ballistic Gun 5 | . . 10 13 11 11 13 19 16 3 6 3 2 . . . . . . . . . 1 . 2 2 4 1 Special Weapon 1 | . 3 7 10 1 . . . 2 . . . . . . . . . . . . . . . . . . . Peak Build Rating 233 | 6 9 12 13 17 56 56 58 64 80 71 90 126 128 151 154 168 170 170 174 174 195 195 187 204 216 226 233 Average Rating 91 | 5 8 10 11 14 49 53 55 58 55 64 76 109 126 138 149 166 166 168 171 171 181 185 185 192 197 218 174 On Entrance 110 | . 6 9 12 9 17 56 56 58 60 58 69 84 126 128 147 154 167 163 170 174 170 189 186 187 204 216 218 Avg Prop Armor Cover (%) 7 | 6 . 11 10 . . . . . 4 4 7 . . . . . . . . . . . . . 6 2 2 Naked Turns 67 | . . . . 67 . . . . . . . . . . . . . . . . . . . . . . . Heaviest Build 229 | 13 90 104 100 94 133 133 133 125 143 118 125 178 165 185 188 190 190 186 190 190 198 202 181 199 220 210 229 Greatest Support 245 | 40 40 40 20 20 32 32 32 32 39 22 66 83 83 90 90 115 115 115 115 115 168 171 163 193 210 210 245 Greatest Overweight (x) 10 | . 4 10 9 4 5 4 4 3 10 9 10 2 1 2 2 2 1 1 1 1 1 2 1 1 1 . 1 Average Overweight (x) 2 | . 2 6 8 3 3 3 3 3 2 8 3 1 1 1 1 1 1 1 1 1 1 . 1 . . . . Largest Inventory Capacity 25 | 8 25 25 25 25 25 25 25 25 25 25 25 25 25 25 25 25 25 25 25 25 25 25 25 25 25 25 25 Average Capacity 24 | 7 20 25 25 24 25 25 25 25 20 25 25 25 25 25 25 25 25 25 25 25 25 25 25 25 25 25 25 Most Carried 25 | 8 25 25 25 25 25 25 25 25 25 25 25 25 19 25 25 25 25 25 25 25 25 25 25 25 25 25 25 Average Carried 23 | 6 18 24 24 23 24 24 24 24 17 23 24 17 18 23 24 24 24 25 25 24 24 24 24 23 24 24 24 Final Capacity 25 | 8 25 25 25 25 25 25 25 25 25 25 25 25 25 25 25 25 25 25 25 25 25 25 25 25 25 25 25 Final Carried 25 | 7 24 25 25 25 25 25 25 25 23 25 25 17 19 25 25 25 25 25 25 25 25 24 25 25 25 25 25 Class Distribution -------------------- 29% | Mutant 22% | Golem 11% | Scavenger-Mutant 10% | Hacker-Tank 6% | Scavenger-Tank 5% | Commander-Golem 3% | Scavenger-Executioner Dominant Class ---------------- Mutant | -10/Materials Mutant | -10/Subcaves Mutant | -8/Recycling Mutant | -8/Scraptown Hacker-Tank | -6/Factory Hacker-Tank | -6/Lower Caves Hacker-Tank | -6/Lower Caves Hacker-Tank | -6/Zion Hacker-Mutant | -6/Deep Caves Scavenger-Tank | -5/Proximity Caves Scavenger-Mutant | -5/Factory Golem | -5/Upper Caves Golem | -5/Upper Caves Golem | -5/Warlord Golem | -4/Proximity Caves Golem | -4/Factory Golem | -4/Extension Commander-Golem | -4/Cetus Commander-Golem | -4/Archives Commander-Golem | -4/Hub_04(d) Golem | -3/Research Golem | -3/Armory Golem | -3/Lab Golem | -2/Research Scavenger-Tank | -2/Quarantine Scavenger-Executioner | -1/Access Scavenger-Mutant | -1/Command Resources | -11 -10 -10 -8 -8 -6 -6 -6 -6 -6 -5 -5 -5 -5 -5 -4 -4 -4 -4 -4 -4 -3 -3 -3 -2 -2 -1 -1 ----------- Run | Yrd Mat Sub Rec Scr Fac Low Low Zio Dee Pro Fac Upp Upp War Pro Fac Ext Cet Arc Hub Res Arm Lab Res Qua Acc Com Matter Collected 11908 | 280 976 836 289 435 884 336 298 70 651 212 469 180 63 274 50 225 160 70 30 133 84 1128 . 369 922 456 2028 Remotely . | . . . . . . . . . . . . . . . . . . . . . . . . . . . . Salvage Created 17775 | 256 1137 439 349 . 451 153 160 . 672 404 436 191 . 610 16 870 879 195 166 911 341 3240 . 994 839 1005 3061 Parts 795 | 22 66 43 7 . 30 1 6 . 21 9 33 10 . 24 4 44 38 5 10 33 14 149 . 42 52 41 91 Haulers Intercepted 2 | . 2 . . . . . . . . . . . . . . . . . . . . . . . . . . Recyclers Shooed 11 | . 3 . 1 . 3 . . . . . 1 . . . . . 2 . . . . . . . . . 1 Parts Field Recycled . | . . . . . . . . . . . . . . . . . . . . . . . . . . . . Retrieved Matter . | . . . . . . . . . . . . . . . . . . . . . . . . . . . . Parts Self-Destructed 55 | . . 13 . . . . 29 . . . . 5 . . 8 . . . . . . . . . . . . Prevented 4 | . . . . . . . . . . . . 4 . . . . . . . . . . . . . . . Parts Restored . | . . . . . . . . . . . . . . . . . . . . . . . . . . . . Kills | -11 -10 -10 -8 -8 -6 -6 -6 -6 -6 -5 -5 -5 -5 -5 -4 -4 -4 -4 -4 -4 -3 -3 -3 -2 -2 -1 -1 ------- Run | Yrd Mat Sub Rec Scr Fac Low Low Zio Dee Pro Fac Upp Upp War Pro Fac Ext Cet Arc Hub Res Arm Lab Res Qua Acc Com Combat Hostiles Destroyed 227 | . 19 14 . . 2 . 2 . 6 3 12 6 . 16 2 13 11 2 1 14 4 48 . 10 10 10 22 Melee 1 | . . . . . . . . . . . 1 . . . . . . . . . . . . . . . . Guns 36 | . 18 8 . . 1 . 1 . 4 2 1 . . . . . . . . . . 1 . . . . . Cannons 117 | . . 6 . . 1 . 1 . . . 2 . . 6 2 8 11 1 1 11 3 34 . 10 3 2 15 AOE 41 | . . . . . . . . . . 1 8 5 . 10 . 5 . . . 3 . 8 . . . . 1 Classes Destroyed 30 | 2 7 3 . . 1 . 1 . 5 2 . . . 4 . 2 . . . 2 1 . . . . . . Worker 5 | . 1 . . . 1 . . . . . . . . . . . . . . . . . . 1 . 2 . Builder 7 | . 2 . . . 3 . . . . . 1 . . . . . 1 . . . . . . . . . . Tunneler 12 | 9 2 . . . 1 . . . . . . . . . . . . . . . . . . . . . . Hauler 2 | . 2 . . . . . . . . . . . . . . . . . . . . . . . . . . Recycler 18 | 1 4 . 2 . 2 . . . . . 1 . . . . 1 1 . . . 1 . . 2 . . 3 Minesweeper 1 | . . . . . . . 1 . . . . . . . . . . . . . . . . . . . . Operator 6 | . 2 . . . . . . . . . . . . . . 2 . . 2 . . . . . . . . Drone 4 | . . . . . . . . . . 2 . . . . 2 . . . . . . . . . . . . Turret 2 | . . 2 . . . . . . . . . . . . . . . . . . . . . . . . . Watcher 12 | . 3 . . . . . . . . . . . . . . . 2 1 . 1 . 4 . . . 1 . Swarmer 51 | . 9 5 . . . . . . . . 8 5 . . . 5 2 . . . 2 5 . . . . 10 Saboteur 2 | . . . . . . . . . . . . . . 1 . . 1 . . . . . . . . . . Grunt 59 | . 10 1 . . . . 2 . . . . . . 8 . 4 4 . . 5 1 16 . . . 5 3 Brawler 1 | . . . . . . . . . . . . . . . . . . . . 1 . . . . . . . Duelist 5 | . . . . . . . . . 1 . . . . . . . . . . . . 2 . . . 1 1 Protector 6 | . . . . . . . . . . . . . . 3 . . . . . 1 . 2 . . . . . Sentry 18 | . . 2 . . . . . . . . 1 1 . . . 1 2 . 1 2 . 3 . 2 . 2 1 Demolisher 3 | . . . . . . . . . . . . . . 1 . . 1 . . . . 1 . . . . . Specialist 6 | . . . . . . . . . . . . . . . . . . . . 2 . 1 . 1 2 . . Hunter 9 | . . . . . . . . . . . . . . . . 2 . . . . . 6 . 1 . . . Programmer 26 | . . . . . 2 . . . . . 3 . . 1 . . 1 . . . . 11 . 5 . 2 1 Heavy 3 | . . . . . . . . . . . . . . . . 1 . . . . . 1 . 1 . . . Behemoth 1 | . . . . . . . . . . . . . . . . . . . . . 1 . . . . . . Cetus Guard 2 | . . . . . . . . . . . . . . . . . . 2 . . . . . . . . . Quarantine Guard 7 | . . . . . . . . . . . . . . . . . . . . . . . . . 7 . . M Guard 2 | . . . . . . . . . . . . . . . . . . . . . . . . . . . 2 Lightning 3 | . . . . . . . . . . . . . . . . . . . . 3 . . . . . . . Combat Programmer 2 | . . . . . . . . . . . . . . . . . . . . . . . . . . . 2 Executioner 2 | . . . . . . . . . . . . . . 2 . . . . . . . . . . . . . Subdweller 6 | . . 6 . . . . . . . . . . . . . . . . . . . . . . . . . Scrapoid 1 | . . . . . . . . . 1 . . . . . . . . . . . . . . . . . . Botcube 1 | . . . . . . . . . . 1 . . . . . . . . . . . . . . . . . Z-Technician 3 | . . . . . . . . . 3 . . . . . . . . . . . . . . . . . . Z-Light 1 | . . . . . . . . . 1 . . . . . . . . . . . . . . . . . . Packrat 3 | . . . . . . 2 . . . . . 1 . . . . . . . . . . . . . . . Assembled 2 | . . . . . . . . . 2 . . . . . . . . . . . . . . . . . . Golem 3 | . . . . . . . . . 2 1 . . . . . . . . . . . . . . . . . Best Kill Streak 12 | 2 6 2 1 . 4 . 1 . 2 1 4 6 . 8 1 5 3 2 1 5 2 10 . 2 2 6 12 Combat Bots Only 10 | . 5 2 . . 1 . 1 . 2 1 4 6 . 8 1 5 2 1 1 5 2 10 . 2 2 6 9 Max Kills in Single Turn 8 | 1 1 1 1 . 1 1 1 . 1 1 3 3 . 8 1 5 2 1 1 2 1 4 . 1 1 2 1 Gunslinging . | . . . . . . . . . . . . . . . . . . . . . . . . . . . . Exploded 7 | . . . . . . . . . . 1 3 3 . 7 . 5 . . . 2 . 4 . . . . 1 Melee 1 | . . . . . . . . . . . 1 . . . . . . . . . . . . . . . . Uniques/NPCs Destroyed 4 | . . . . . . . . . 1 . . . . . . . . . . . . . . . 1 . 2 Z-Imprinter (-6/Deep Caves) DW-4LL (-2/Quarantine) MAIN.C Shell (-1/Command) MAIN.C (-1/Command) Combat | -11 -10 -10 -8 -8 -6 -6 -6 -6 -6 -5 -5 -5 -5 -5 -4 -4 -4 -4 -4 -4 -3 -3 -3 -2 -2 -1 -1 -------- Run | Yrd Mat Sub Rec Scr Fac Low Low Zio Dee Pro Fac Upp Upp War Pro Fac Ext Cet Arc Hub Res Arm Lab Res Qua Acc Com Hostile Shots Fired 1165 | . 83 85 . . 6 . 9 . 76 . 69 22 . 2 24 28 29 . 1 33 48 323 . 52 140 35 100 Missed 328 | . 21 20 . . 3 . 5 . 14 . 19 9 . 2 9 11 10 . . 9 15 98 . 15 43 7 18 Hits 837 | . 62 65 . . 3 . 4 . 62 . 50 13 . . 15 17 19 . 1 24 33 225 . 37 97 28 82 Melee 1 | . . . . . . . . . 1 . . . . . . . . . . . . . . . . . . Projectile 836 | . 62 65 . . 3 . 4 . 61 . 50 13 . . 15 17 19 . 1 24 33 225 . 37 97 28 82 AOE 20 | . . . . . . . . . . . 3 . . 5 . . 2 . . . . 2 . . . . 8 Critical Strikes 49 | . . 3 . . . . . . . . 3 . . . . . . 2 . 1 . 16 . 6 5 2 11 Part Disruptions 2 | . . . . . . . . . . . . . . . . . . . . . . . . 1 1 . . Damage Taken 15898 | . 622 896 . . 50 . 48 . 2001 . 1334 314 . 273 284 226 401 82 18 584 448 2969 . 765 1721 466 2396 Core 1184 | . 116 120 . . 5 . . . 153 . 94 30 . 52 52 . 37 18 . 48 109 207 . 40 30 14 59 Absorbed by Shields 2215 | . . . . . . . 12 . 336 . . . . 68 . 57 97 40 5 77 235 693 . . 35 77 483 Reduced by Siege Mode 166 | . . . . . . . . . . . . . . . . . . . . . . . . . . 8 158 Redirected to Shielding 62 | . . . . . . . . . 33 . . . . . . . . . . . . . . . . . 29 Ignored by Resistances 2559 | . . . . . . . . . . . . . . . . . . . . 134 138 1238 . 157 374 113 405 Regen/Repaired (Parts) 680 | . 81 . . . 57 . . . . . . . . 73 . . . . . . . . . . 469 . . Core Remaining (%) 77 | 100 . . . 5 . . . . . 81 . . . . 77 . . . . 91 . . 75 . 95 . 95 Volleys Fired 1435 | 48 194 127 92 8 44 5 19 . 85 34 74 13 3 16 8 39 32 14 8 29 16 148 . 63 58 72 186 Largest 4 | 1 2 2 2 1 3 1 3 . 2 2 3 2 2 3 3 3 3 1 2 3 3 3 . 3 4 2 4 Hottest 300 | 50 100 110 130 5 135 80 135 . 75 106 221 81 50 75 75 75 75 88 50 75 75 88 . 75 113 160 300 Shots Fired 2128 | 48 287 161 93 8 62 5 54 . 95 36 92 17 8 37 22 77 85 14 16 67 36 296 . 118 103 73 218 Gun 693 | 48 218 77 12 . 39 . 49 . 55 35 45 1 . . . . . . . . . 12 . 12 14 . 76 Cannon 1194 | . . 36 8 . 20 5 5 . 37 . 42 13 8 34 22 75 85 14 16 65 36 275 . 106 89 71 132 Launcher 34 | . . 5 . . . . . . . 1 3 3 . . . 1 . . . . . 9 . . . 2 10 Special 207 | . 69 43 73 8 3 . . . 3 . 2 . . 3 . 1 . . . 2 . . . . . . . Kinetic 377 | . . 49 20 . 34 . 49 . 55 2 16 1 . . . . . . . . . 12 . 12 14 . 113 Thermal 1593 | 48 284 112 73 . 28 5 5 . 22 33 71 6 8 34 22 75 85 . 16 65 36 275 . 106 59 46 79 Explosive 20 | . . . . . . . . . 1 1 5 3 . 3 . 1 . . . 2 . 4 . . . . . Electromagnetic 124 | . 3 . . . . . . . 15 . . 7 . . . . . 14 . . . 5 . . 30 27 23 Entropic 3 | . . . . . . . . . . . . . . . . . . . . . . . . . . . 3 Robot Hit Streak 29 | 7 18 24 6 3 12 3 9 . 9 8 17 9 . 14 10 13 12 5 4 12 5 18 . 12 14 6 29 Robot Miss Streak 7 | 3 5 2 2 2 3 2 6 . 5 1 5 1 . 4 1 2 7 1 3 2 2 4 . 3 4 2 3 Penetration Max 1 | . . . . . 1 . . . 1 . . . . . . . . . . . . . . . . . . Secondary Targets 3 | . 1 1 . . . . . . 1 . . . . . . . . . . . . . . . . . . Max Gunslinging Chain 1 | . 1 1 . . . . . . 1 . . . . . . . . . . . . . . . . . . Capacitor 199 | . . . . . . . . . . . . . . . . . . . . . . . . . 33 71 95 Shots Hit Robots 1122 | 29 138 73 13 5 30 3 29 . 41 28 32 7 . 22 11 30 47 11 8 38 13 176 . 60 67 29 182 Core Hits 617 | 11 54 31 5 . 14 1 6 . 15 18 21 7 . 49 4 19 23 8 7 27 9 126 . 25 26 23 88 Critical Kills 3 | . . . . . 1 . . . 1 . . . . . . . . . . . . 1 . . . . . Critical Parts Destroyed 4 | . . . . . 1 . . . 1 . . . . . . . . . . . . . . . . . 2 Critical Strikes 25 | . 9 4 . . 2 . . . 2 . . . . . . . . 1 . 2 . 1 . . . . 4 Burn 9 | . 9 . . . . . . . . . . . . . . . . . . . . . . . . . . Destroy 7 | . . . . . 2 . . . 2 . . . . . . . . . . . . 1 . . . . 2 Blast 6 | . . 4 . . . . . . . . . . . . . . . . . . . . . . . . 2 Corrupt 1 | . . . . . . . . . . . . . . . . . . 1 . . . . . . . . . Sever 2 | . . . . . . . . . . . . . . . . . . . . 2 . . . . . . . Melee Attacks 22 | . . . . . . . . . 10 . 4 . . . . . . . . . 8 . . . . . . Impact . | . . . . . . . . . . . . . . . . . . . . . . . . . . . . Slashing 10 | . . . . . . . . . 10 . . . . . . . . . . . . . . . . . . Piercing 12 | . . . . . . . . . . . 4 . . . . . . . . . 8 . . . . . . Sneak Attacks 3 | . . . . . . . . . 3 . . . . . . . . . . . . . . . . . . Combat Hostiles . | . . . . . . . . . . . . . . . . . . . . . . . . . . . . Follow-up Attacks . | . . . . . . . . . . . . . . . . . . . . . . . . . . . . Damage Inflicted 48303 | 357 1792 1557 319 . 709 85 585 . 1327 1079 2049 766 89 3900 521 1893 2223 417 483 2393 542 9572 . 2920 2576 1648 8501 Guns 8521 | 357 1720 780 204 . 579 . 475 . 465 1006 453 . . . . . . . . . . 128 . 196 237 . 1921 Cannons 30321 | . . 541 43 . 130 85 110 . 250 . 401 163 89 1031 521 1522 2223 417 483 1722 436 7678 . 2724 2339 1314 6099 Explosions 8442 | . . 210 . . . . . . 156 73 1058 603 . 2799 . 371 . . . 591 . 1766 . . . 334 481 Melee 623 | . . . . . . . . . 456 . 68 . . . . . . . . . 99 . . . . . . Ramming 7 | . . . . . . . . . . . . . . . . . . . . . 7 . . . . . . Kinetic 6259 | . . 743 247 . 465 . 475 . 465 25 317 . . . . . . . . . . 128 . 196 237 . 2961 Thermal 28501 | 357 1774 814 72 . 244 85 110 . . 981 537 . 89 1031 521 1522 2223 . 483 1722 436 7678 . 2724 1505 544 3049 Explosive 6656 | . . . . . . . . . 156 73 1058 603 . 2799 . 371 . . . 591 . 1005 . . . . . Electromagnetic 4301 | . 18 . . . . . . . 250 . . 163 . . . . . 417 . . . 761 . . 834 1104 754 Impact . | . . . . . . . . . . . . . . . . . . . . . . . . . . . . Slashing 675 | . . . . . . . . . 456 . 69 . . 70 . . . . . 80 . . . . . . . Piercing 167 | . . . . . . . . . . . 68 . . . . . . . . . 99 . . . . . . Entropic 1737 | . . . . . . . . . . . . . . . . . . . . . . . . . . . 1737 Highest Corruption 26 | . 1 1 2 . . . . . . . 6 6 6 6 . . . . . 2 . 7 7 6 26 2 11 Average Corruption 4 | . 1 1 1 . . . . . . . 3 6 6 6 . . . . . 1 . 5 7 4 11 1 8 Corruption Purged . | . . . . . . . . . . . . . . . . . . . . . . . . . . . . Corruption Blocked . | . . . . . . . . . . . . . . . . . . . . . . . . . . . . Effects 382 | . 10 31 21 . . . . . . . 21 36 15 2 . . . . . 5 . 58 19 4 92 6 62 Message Errors 94 | . . 7 8 . . . . . . . 7 11 3 . . . . . . 1 . 12 7 1 22 1 14 Matter Fused 100 | . 2 8 6 . . . . . . . 6 9 4 1 . . . . . 1 . 17 5 1 17 2 21 Heat Flow Errors 50 | . 1 5 2 . . . . . . . 4 5 2 1 . . . . . 1 . 3 3 . 14 1 8 Energy Discharges 39 | . 2 4 2 . . . . . . . 1 6 . . . . . . . . . 4 3 . 10 1 6 Parts Rejected 2 | . . . . . . . . . . . 1 . . . . . . . . . . . . . 1 . . Parts Fused 5 | . 1 . . . . . . . . . . . 1 . . . . . . . . 2 . . . . 1 Data Loss (minor) 50 | . 2 4 1 . . . . . . . 2 3 3 . . . . . . 1 . 7 1 . 18 1 7 Data Loss (major) 17 | . 1 2 2 . . . . . . . . 1 . . . . . . . . . 6 . . 4 . 1 Misfires 9 | . . . . . . . . . . . . 1 2 . . . . . . . . 4 . . 1 . 1 Alerts 8 | . 1 1 . . . . . . . . . . . . . . . . . . . 1 . . 3 . 2 Weapon Failures 8 | . . . . . . . . . . . . . . . . . . . . 1 . 2 . 2 2 . 1 Overload Shots . | . . . . . . . . . . . . . . . . . . . . . . . . . . . . Overflow Damage 1133 | . . 9 . . 5 39 . . 217 . 205 48 . 1 . 55 67 . . 78 . 243 . 120 . 4 42 Projectiles 628 | . . 9 . . 5 39 . . . . 19 . . . . 23 67 . . 57 . 243 . 120 . 4 42 Explosions 278 | . . . . . . . . . . . 176 48 . 1 . 32 . . . 21 . . . . . . . Melee 227 | . . . . . . . . . 217 . 10 . . . . . . . . . . . . . . . . Knockbacks 15 | . . 4 . . 1 . . . . . . . . . . . . . . . . . . . . . 10 Impact . | . . . . . . . . . . . . . . . . . . . . . . . . . . . . Kinetic 15 | . . 4 . . 1 . . . . . . . . . . . . . . . . . . . . . 10 Secondary . | . . . . . . . . . . . . . . . . . . . . . . . . . . . . Self-Inflicted Damage 328 | . . . . . . . . . . . 24 38 . . . . . . . . . 118 . . . 5 143 Shots 22 | . . . . . . . . . . . 1 1 . . . . . . . . . 4 . . . 1 15 Rammed . | . . . . . . . . . . . . . . . . . . . . . . . . . . . . Targets Rammed 1 | . . . . . . . . . . . . . . . . . . . . . 1 . . . . . . Kicked 1 | . . . . . . . . . . . . . . . . . . . . . 1 . . . . . . Crushed . | . . . . . . . . . . . . . . . . . . . . . . . . . . . . Highest Temperature 425 | 110 262 204 297 . 189 114 311 . 411 . 267 240 207 134 27 . 1 110 . 151 . 238 229 42 425 232 422 Average Temperature 77 | 33 50 60 80 . 36 51 92 . 107 . 50 91 111 57 11 . 1 39 . 26 . 94 119 12 110 93 135 Received Heat Transfer 1964 | . 234 135 . . 1 . 15 . 328 . 126 18 . 20 18 6 29 . . 80 50 725 . 27 . 93 59 Effects 6 | . . . 1 . . . . . 1 . . . . . . . . . . . . . . . 1 2 1 Interference 5 | . . . 1 . . . . . 1 . . . . . . . . . . . . . . . . 2 1 Damage (minor) 1 | . . . . . . . . . . . . . . . . . . . . . . . . . 1 . . Siege Activations 2 | . . . . . . . . . . . . . . . . . . . . . . . . . . 1 1 Total Turns 53 | . . . . . . . . . . . . . . . . . . . . . . . . . . 6 47 Longest Duration 47 | . . . . . . . . . . . . . . . . . . . . . . . . . . 6 47 Martial Activations . | . . . . . . . . . . . . . . . . . . . . . . . . . . . . Shielding Activations . | . . . . . . . . . . . . . . . . . . . . . . . . . . . . Robots Disrupted 1 | . . . . . . . . . . . . . . . . . . . . . . . . . . . 1 Combat Hostiles 1 | . . . . . . . . . . . . . . . . . . . . . . . . . . . 1 Robots Corrupted 30 | . . . . . . . . . 2 . . 1 . . . . . 1 . . . 5 . . 7 8 6 Combat Hostiles 30 | . . . . . . . . . 2 . . 1 . . . . . 1 . . . 5 . . 7 8 6 Parts Fried 55 | . . . . . . . . . . . . 1 . . . . . 3 . . . 19 . . 20 8 4 Impact Corruptions . | . . . . . . . . . . . . . . . . . . . . . . . . . . . . Robots Melted 1 | . 1 . . . . . . . . . . . . . . . . . . . . . . . . . . Combat Hostiles 1 | . 1 . . . . . . . . . . . . . . . . . . . . . . . . . . Parts Melted 34 | 5 14 . . . . . 1 . 1 . . . . . . 5 1 . . 1 . 2 . 4 . . . Heat Transferred 21986 | 1073 5811 1740 150 . 299 111 148 . . 1073 594 . 62 391 275 828 1253 . 246 891 250 3891 . 1425 400 275 800 Parts Sabotaged . | . . . . . . . . . . . . . . . . . . . . . . . . . . . . Parts Stolen . | . . . . . . . . . . . . . . . . . . . . . . . . . . . . Parts Stripped . | . . . . . . . . . . . . . . . . . . . . . . . . . . . . Power Chain Reactions 2 | . . . . . . . . . . . . . . . . . . . . . . . . . . . 2 Alert | -11 -10 -10 -8 -8 -6 -6 -6 -6 -6 -5 -5 -5 -5 -5 -4 -4 -4 -4 -4 -4 -3 -3 -3 -2 -2 -1 -1 ------- Run | Yrd Mat Sub Rec Scr Fac Low Low Zio Dee Pro Fac Upp Upp War Pro Fac Ext Cet Arc Hub Res Arm Lab Res Qua Acc Com Maximum Alert Level 4 | . . . . . . . . . . . 2 . . . . 2 4 3 2 3 2 3 . 2 1 . 1 Low Security (%) 59 | 100 100 . 100 . 100 . . . . . 91 . . . . 3 . . . 57 58 22 . 56 80 100 5 Level 1 25 | . . . . . . . . . . . 7 . . . . 70 66 . 6 10 37 23 . 40 19 . 94 Level 2 7 | . . . . . . . . . . . . . . . . 26 9 . 93 10 3 31 . 3 . . . Level 3 6 | . . . . . . . . . . . . . . . . . 3 100 . 20 . 22 . . . . . Level 4 1 | . . . . . . . . . . . . . . . . . 20 . . . . . . . . . . Level 5 . | . . . . . . . . . . . . . . . . . . . . . . . . . . . . High Security . | . . . . . . . . . . . . . . . . . . . . . . . . . . . . Max Security . | . . . . . . . . . . . . . . . . . . . . . . . . . . . . Peak Influence 1483 | 10 153 . 130 . 63 . . . . . 402 . . . . 539 1483 937 500 837 435 859 . 411 267 175 371 Initial 819 | . . . 129 . . . . . . . 150 . . . . 150 235 819 322 140 435 97 . . 231 66 53 Average 218 | . 51 . 41 . 10 . . . . . 80 . . . . 346 547 861 445 337 206 463 . 175 123 88 279 Influence Increases 12470 | 50 723 470 306 . 187 . 348 . . 15 1003 182 . 328 43 1020 2018 338 220 1125 181 1662 . 666 578 345 662 Destroy 0b10 Robot/C 5760 | . 380 200 . . 40 . 220 . . . 300 140 . 280 20 440 900 160 80 400 80 1000 . 240 240 200 440 Destroy 0b10 Robot/NC 500 | 50 80 . 25 . 40 . 5 . . 15 20 . . 20 10 20 40 10 10 15 5 35 . 45 . 15 40 Destroy Leader 944 | . 90 . . . 22 . 10 . . . 74 10 . . 10 90 76 . . 74 10 192 . 94 100 42 50 Allied During Kill 1657 | . . . . . 6 . 113 . . . 97 2 . 28 3 126 711 142 90 273 . 28 . 20 18 . . Successful Hack 192 | . 26 . 53 . 44 . . . . . 20 . . . . . . . . . 27 . . . 22 . . Select Force Hacks 240 | . 60 . 180 . . . . . . . . . . . . . . . . . . . . . . . . Disable Machine 780 | . 30 . . . 30 . . . . . 90 . . . . 30 75 . 30 105 15 195 . 30 105 30 15 Anti-Garrison Action 150 | . . . . . . . . . . . . . . . . . . . . 150 . . . . . . . Destroy Structure 1452 | . 27 . 48 . 5 . . . . . 192 . . . . 164 216 26 10 108 44 212 . 177 93 58 72 Advance Influence 300 | . . . . . . . . . . . 150 . . . . 150 . . . . . . . . . . . Lose Combat Pursuer 495 | . 30 270 . . . . . . . . 60 30 . . . . . . . . . . . 60 . . 45 Influence Decreases 12159 | 50 572 350 526 51 187 . 348 . . 15 659 526 . 70 301 538 1037 994 625 698 824 1163 685 255 878 372 435 Entered New Map 3714 | . . 73 142 51 . . . . . . . 128 . . 258 . 247 644 485 262 394 89 685 . 180 45 31 Time Decay 6913 | 50 552 257 384 . 187 . 328 . . 15 447 398 . 70 43 478 510 310 140 286 270 644 . 235 658 317 334 Lost Part 260 | . 20 20 . . . . . . . . 50 . . . . . . . . 10 10 50 . . 20 10 70 Lost Ally 822 | . . . . . . . 20 . . . 162 . . . . 60 280 40 . 140 . 80 . 20 20 . . Purge Threat 450 | . . . . . . . . . . . . . . . . . . . . . 150 300 . . . . . Squads Dispatched 60 | . 6 . . . 3 . . . . . 6 . . . . 8 3 . . 9 7 8 . 2 . 6 2 Investigation 12 | . 3 . . . . . . . . . 3 . . . . 1 1 . . 1 2 1 . . . . . Extermination 18 | . . . . . 2 . . . . . 3 . . . . 2 . . . 1 1 5 . 1 . 2 1 Reinforcement 16 | . 3 . . . 1 . . . . . . . . . . 2 . . . 3 4 1 . 1 . 1 . Assault 7 | . . . . . . . . . . . . . . . . . 2 . . 3 . 1 . . . . 1 Garrison 7 | . . . . . . . . . . . . . . . . 3 . . . 1 . . . . . 3 . Intercept . | . . . . . . . . . . . . . . . . . . . . . . . . . . . . Searches Triggered . | . . . . . . . . . . . . . . . . . . . . . . . . . . . . Unchained Authorized 1 | . . . . . . . . . . . . . . . . . . . . . . . . . 1 . . Construction Impeded . | . . . . . . . . . . . . . . . . . . . . . . . . . . . . Haulers Reinforced 2 | . . . . . . . . . . . . . . . . 1 . . . . 1 . . . . . . Active Scanning Responses . | . . . . . . . . . . . . . . . . . . . . . . . . . . . . Cargo Convoy Interrupts . | . . . . . . . . . . . . . . . . . . . . . . . . . . . . Stealth | -11 -10 -10 -8 -8 -6 -6 -6 -6 -6 -5 -5 -5 -5 -5 -4 -4 -4 -4 -4 -4 -3 -3 -3 -2 -2 -1 -1 --------- Run | Yrd Mat Sub Rec Scr Fac Low Low Zio Dee Pro Fac Upp Upp War Pro Fac Ext Cet Arc Hub Res Arm Lab Res Qua Acc Com Distress Signals 36 | . 2 . . . . . . . . . 1 . . . . . 1 2 . . 8 5 . 1 1 . 15 Communications Jammed 54 | . . . . . . . . . . . 6 . . . 2 1 6 . . . . 21 . 4 . 14 . Distress Signals 41 | . . . . . . . . . . . 6 . . . . 1 6 . . . . 13 . 1 . 14 . Times Spotted 444 | . 39 22 . . 7 . 7 . 33 3 23 8 . 48 3 17 39 10 6 27 8 65 . 22 19 13 25 Peak Tracking Total 26 | . 5 4 . . 2 . 4 . 26 1 4 4 . 16 1 5 5 5 1 6 4 11 . 5 3 4 5 Tactical Retreats 21 | . 1 8 . . . . . . 1 . 2 2 . . . . . . . . . . . 4 . . 3 Traps | -11 -10 -10 -8 -8 -6 -6 -6 -6 -6 -5 -5 -5 -5 -5 -4 -4 -4 -4 -4 -4 -3 -3 -3 -2 -2 -1 -1 ------- Run | Yrd Mat Sub Rec Scr Fac Low Low Zio Dee Pro Fac Upp Upp War Pro Fac Ext Cet Arc Hub Res Arm Lab Res Qua Acc Com Traps Triggered 14 | . 2 . . . 1 . . . . . 2 1 . . . . 4 . . . . 3 . . 1 . . Indirectly . | . . . . . . . . . . . . . . . . . . . . . . . . . . . . Trap Hack Attempts . | . . . . . . . . . . . . . . . . . . . . . . . . . . . . Triggered . | . . . . . . . . . . . . . . . . . . . . . . . . . . . . Disarmed . | . . . . . . . . . . . . . . . . . . . . . . . . . . . . Reprogrammed . | . . . . . . . . . . . . . . . . . . . . . . . . . . . . Reused 1 | . . . . . . . . . 1 . . . . . . . . . . . . . . . . . . Traps Extracted . | . . . . . . . . . . . . . . . . . . . . . . . . . . . . Installed 1 | . . . . . . . . . 1 . . . . . . . . . . . . . . . . . . Triggered . | . . . . . . . . . . . . . . . . . . . . . . . . . . . . Most Traps Carried 3 | . . 1 1 3 3 3 3 3 2 1 1 1 1 1 1 . . . . . . . . . . . . Machines | -11 -10 -10 -8 -8 -6 -6 -6 -6 -6 -5 -5 -5 -5 -5 -4 -4 -4 -4 -4 -4 -3 -3 -3 -2 -2 -1 -1 ---------- Run | Yrd Mat Sub Rec Scr Fac Low Low Zio Dee Pro Fac Upp Upp War Pro Fac Ext Cet Arc Hub Res Arm Lab Res Qua Acc Com Machines Disabled 61 | . 2 4 . . 2 . . . 2 . 6 . . 1 1 2 5 . 2 8 1 13 . 2 7 2 1 Max in Single Turn 3 | . 1 3 . . 1 . . . 1 . 1 . . 1 1 1 1 . . 2 1 1 . 1 1 1 1 Garrison Access 5 | . . . . . 1 . . . . . 2 . . . . 1 . . . 1 . . . . . . . Network Hub 1 | . . . . . . . . . . . . . . . . . . . . 1 . . . . . . . Machines Repaired . | . . . . . . . . . . . . . . . . . . . . . . . . . . . . Machines Dismantled . | . . . . . . . . . . . . . . . . . . . . . . . . . . . . Machines Sabotaged . | . . . . . . . . . . . . . . . . . . . . . . . . . . . . Overloaded Fab Kills . | . . . . . . . . . . . . . . . . . . . . . . . . . . . . Hacking | -11 -10 -10 -8 -8 -6 -6 -6 -6 -6 -5 -5 -5 -5 -5 -4 -4 -4 -4 -4 -4 -3 -3 -3 -2 -2 -1 -1 --------- Run | Yrd Mat Sub Rec Scr Fac Low Low Zio Dee Pro Fac Upp Upp War Pro Fac Ext Cet Arc Hub Res Arm Lab Res Qua Acc Com Machines Accessed 60 | . 8 1 12 4 8 1 . 1 . . 10 1 1 2 . 2 1 . . 1 2 . . 1 3 1 . Terminals 20 | . 5 . 6 . 5 . . . . . 2 . . . . . . . . . 1 . . . 1 . . Fabricators 2 | . . . . . . . . . . . 2 . . . . . . . . . . . . . . . . Repair Stations 4 | . 1 . . . 1 . . . . . . . . . . . . . . . . . . . 2 . . Recycling Units 14 | . 2 . 6 . . . . . . . 4 . . . . 1 1 . . . . . . . . . . Scanalyzers 1 | . . . . . 1 . . . . . . . . . . . . . . . . . . . . . . Garrison Access 8 | . . . . . 1 . . . . . 2 . . . . 1 . . . 1 1 . . 1 . 1 . Total Hacks 165 | . 23 4 32 24 30 1 . 6 . . 18 1 1 3 . 2 3 . . 3 3 . . 3 6 2 . Successful 112 | . 15 4 22 24 17 1 . 6 . . 10 1 1 3 . 2 1 . . . 1 . . . 4 . . Failed 51 | . 7 . 9 . 13 . . . . . 8 . . . . . 2 . . 3 2 . . 3 2 2 . Catastrophic 5 | . . . 2 . 1 . . . . . . . . . . . . . . . 1 . . . 1 . . Database Lockouts 2 | . 1 . 1 . . . . . . . . . . . . . . . . . . . . . . . . Manual 63 | . 16 . 20 . 13 . . 4 . . 6 . . . . 1 2 1 . . . . . . . . . Terminals 60 | . 17 . 19 . 17 . . . . . 3 . . . . . . . . . 2 . . . 2 . . Fabricators 3 | . . . . . . . . . . . 3 . . . . . . . . . . . . . . . . Repair Stations 8 | . 2 . . . 2 . . . . . . . . . . . . . . . . . . . 4 . . Recycling Units 28 | . 4 . 13 . . . . . . . 7 . . . . 1 3 . . . . . . . . . . Scanalyzers 9 | . . . . . 9 . . . . . . . . . . . . . . . . . . . . . . Garrison Access 17 | . . . . . 2 . . . . . 5 . . . . 1 . . . 3 1 . . 3 . 2 . Terminal Hacks 56 | . 4 4 7 24 3 1 . 6 . . . 1 1 3 . . . . . . 1 . . . 1 . . Record 30 | . . 4 . 23 . . . . . . . 1 . 2 . . . . . . . . . . . . . Part Schematic 10 | . 1 . 2 . 1 . . 6 . . . . . . . . . . . . . . . . . . . Robot Analysis 3 | . 3 . . . . . . . . . . . . . . . . . . . . . . . . . . Prototype ID Bank 2 | . . . 2 . . . . . . . . . . . . . . . . . . . . . . . . Open Door 3 | . . . . . . 1 . . . . . . 1 1 . . . . . . . . . . . . . Branch Access Points 1 | . . . . . 1 . . . . . . . . . . . . . . . . . . . . . . Scanalyzer Index 1 | . . . . . 1 . . . . . . . . . . . . . . . . . . . . . . Locate Traps 1 | . . . . . . . . . . . . . . . . . . . . . . . . . 1 . . Recall Extermination 1 | . . . . . . . . . . . . . . . . . . . . . 1 . . . . . . Zone Layout 3 | . . . 3 . . . . . . . . . . . . . . . . . . . . . . . . Proto ID Catalog 1 | . . . . 1 . . . . . . . . . . . . . . . . . . . . . . . Fabricator Hacks 3 | . . . . . . . . . . . 3 . . . . . . . . . . . . . . . . Network Status 2 | . . . . . . . . . . . 2 . . . . . . . . . . . . . . . . Build 1 | . . . . . . . . . . . 1 . . . . . . . . . . . . . . . . Repair Station Hacks 7 | . 2 . . . 2 . . . . . . . . . . . . . . . . . . . 3 . . Scan Component 4 | . 1 . . . 1 . . . . . . . . . . . . . . . . . . . 2 . . Repair 3 | . 1 . . . 1 . . . . . . . . . . . . . . . . . . . 1 . . Recycling Unit Hacks 7 | . . . 5 . . . . . . . 2 . . . . . . . . . . . . . . . . Retrieve Components 7 | . . . 5 . . . . . . . 2 . . . . . . . . . . . . . . . . Scanalyzer 8 | . . . . . 8 . . . . . . . . . . . . . . . . . . . . . . Insert Component 2 | . . . . . 2 . . . . . . . . . . . . . . . . . . . . . . Analyze 3 | . . . . . 3 . . . . . . . . . . . . . . . . . . . . . . Retrieve Study 3 | . . . . . 3 . . . . . . . . . . . . . . . . . . . . . . Garrison Access Hacks 4 | . . . . . 1 . . . . . 2 . . . . 1 . . . . . . . . . . . Seal Access 4 | . . . . . 1 . . . . . 2 . . . . 1 . . . . . . . . . . . Unauthorized Hacks 27 | . 9 . 10 . 3 . . . . . 3 . . . . 1 1 . . . . . . . . . . Terminals 15 | . 7 . 4 . 3 . . . . . 1 . . . . . . . . . . . . . . . . Track 1 | . . . . . 1 . . . . . . . . . . . . . . . . . . . . . . Assimilate 3 | . 3 . . . . . . . . . . . . . . . . . . . . . . . . . . Botnet 6 | . 1 . 2 . 2 . . . . . 1 . . . . . . . . . . . . . . . . Operators 1 | . 1 . . . . . . . . . . . . . . . . . . . . . . . . . . Skim 4 | . 2 . 2 . . . . . . . . . . . . . . . . . . . . . . . . Fabricators . | . . . . . . . . . . . . . . . . . . . . . . . . . . . . Repair Stations . | . . . . . . . . . . . . . . . . . . . . . . . . . . . . Recycling Units 12 | . 2 . 6 . . . . . . . 2 . . . . 1 1 . . . . . . . . . . Tunnel 8 | . 2 . 6 . . . . . . . . . . . . . . . . . . . . . . . . Scrapoids 4 | . . . . . . . . . . . 2 . . . . 1 1 . . . . . . . . . . Scanalyzers . | . . . . . . . . . . . . . . . . . . . . . . . . . . . . Garrison Access . | . . . . . . . . . . . . . . . . . . . . . . . . . . . . Data Cores Recovered 2 | . . . . . . . . . . . . . . . . 1 1 . . . . . . . . . . Used . | . . . . . . . . . . . . . . . . . . . . . . . . . . . . Hacking Detections 36 | . 6 . 9 . 7 . . . . . 6 . . . . . 1 1 . 1 1 . . 1 2 1 . Full Trace Events 3 | . . . 1 . . . . . . . 1 . . . . . . . . 1 . . . . . . . Feedback Events 1 | . . . 1 . . . . . . . . . . . . . . . . . . . . . . . . Corruption 1 | . . . 1 . . . . . . . . . . . . . . . . . . . . . . . . Feedback Blocked . | . . . . . . . . . . . . . . . . . . . . . . . . . . . . Robot Schematics Acquired 3 | . . . . . . . . 3 . . . . . . . . . . . . . . . . . . . Robots Built . | . . . . . . . . . . . . . . . . . . . . . . . . . . . . Authchips . | . . . . . . . . . . . . . . . . . . . . . . . . . . . . Time . | . . . . . . . . . . . . . . . . . . . . . . . . . . . . Total Robot Build Rating . | . . . . . . . . . . . . . . . . . . . . . . . . . . . . Part Schematics Acquired 26 | . 1 . 2 . 2 . . 21 . . . . . . . . . . . . . . . . . . . Parts Built 2 | . . . . . . . . . . . 2 . . . . . . . . . . . . . . . . Authchips . | . . . . . . . . . . . . . . . . . . . . . . . . . . . . Time 106 | . . . . . . . . . . . 106 . . . . . . . . . . . . . . . . Total Part Build Rating 12 | . . . . . . . . . . . 12 . . . . . . . . . . . . . . . . Part Studies Acquired 3 | . . . . . 3 . . . . . . . . . . . . . . . . . . . . . . Parts Repaired 3 | . 1 . . . 1 . . . . . . . . . . . . . . . . . . . 1 . . Time 126 | . 26 . . . 44 . . . . . . . . . . . . . . . . . . . 56 . . Parts Recycled . | . . . . . . . . . . . . . . . . . . . . . . . . . . . . Recycled Matter . | . . . . . . . . . . . . . . . . . . . . . . . . . . . . Retrieved Matter . | . . . . . . . . . . . . . . . . . . . . . . . . . . . . Retrieved Components 14 | . . . 13 . . . . . . . 1 . . . . . . . . . . . . . . . . Parts Scanalyzed 2 | . . . . . 2 . . . . . . . . . . . . . . . . . . . . . . Part Schematics Acquired 2 | . . . . . 2 . . . . . . . . . . . . . . . . . . . . . . Parts Damaged 1 | . . . . . 1 . . . . . . . . . . . . . . . . . . . . . . Bothacking | -11 -10 -10 -8 -8 -6 -6 -6 -6 -6 -5 -5 -5 -5 -5 -4 -4 -4 -4 -4 -4 -3 -3 -3 -2 -2 -1 -1 ------------ Run | Yrd Mat Sub Rec Scr Fac Low Low Zio Dee Pro Fac Upp Upp War Pro Fac Ext Cet Arc Hub Res Arm Lab Res Qua Acc Com Used RIF Installer . | . . . . . . . . . . . . . . . . . . . . . . . . . . . . Robots Hacked 4 | . . . . 4 . . . . . . . . . . . . . . . . . . . . . . . Non-combat 2 | . . . . 2 . . . . . . . . . . . . . . . . . . . . . . . Combat 2 | . . . . 2 . . . . . . . . . . . . . . . . . . . . . . . Robot Hacks Applied 4 | . . . . 4 . . . . . . . . . . . . . . . . . . . . . . . parse_system 4 | . . . . 4 . . . . . . . . . . . . . . . . . . . . . . . Relay Couplers Released 2 | . . . . . . . . . . . 1 . . . . . . . . 1 . . . . . . . Machine Destruction 2 | . . . . . . . . . . . 1 . . . . . . . . 1 . . . . . . . Fabnet Peak Effective % . | . . . . . . . . . . . . . . . . . . . . . . . . . . . . Robots Rewired 12 | . . . . . . . 2 . . . . . . . . . 5 . . . . 5 . . . . . Allies Hacked 2 | . . . . . . . . . . . 1 . . . . 1 . . . . . . . . . . . Hacks Repelled . | . . . . . . . . . . . . . . . . . . . . . . . . . . . . Allies | -11 -10 -10 -8 -8 -6 -6 -6 -6 -6 -5 -5 -5 -5 -5 -4 -4 -4 -4 -4 -4 -3 -3 -3 -2 -2 -1 -1 -------- Run | Yrd Mat Sub Rec Scr Fac Low Low Zio Dee Pro Fac Upp Upp War Pro Fac Ext Cet Arc Hub Res Arm Lab Res Qua Acc Com Total Allies 62 | . . . . 1 . . 7 . . 1 10 1 . . . 5 24 5 . . . 6 . . 2 . . Largest Group 15 | . . . . 1 1 1 8 5 3 1 5 1 1 1 1 6 15 10 9 7 . 3 1 1 1 . . Highest-Rated Group 843 | . . . . 53 53 53 348 207 130 33 241 82 82 82 82 323 666 843 797 606 . 141 79 79 91 . . Highest-Rated Ally 159 | . . . . 53 53 53 53 53 53 33 50 82 82 82 82 82 159 159 152 96 . 79 79 79 91 . . Total Orders 108 | . . . . 5 . . . . 2 . 3 . 1 6 8 16 15 1 . 5 8 17 . 5 9 5 2 STAY 14 | . . . . 3 . . . . 1 . . . . 3 3 . 1 . . . . 1 . 1 1 . . FOLLOW 13 | . . . . 2 . . . . 1 . . . . 2 2 . 2 . . . . 1 . 1 2 . . RETURN 81 | . . . . . . . . . . . 3 . 1 1 3 16 12 1 . 5 8 15 . 3 6 5 2 Ally Attacks 779 | . . . . . 5 . 73 . 56 . 72 1 . 7 3 70 243 71 13 74 . 38 . 22 31 . . Total Damage 21936 | . . . . . 98 . 1876 . 839 . 1269 33 . 470 96 2040 7137 1886 288 2296 . 1037 . 1045 1526 . . Kills 114 | . . . . . 1 . 9 . 6 . 6 1 . 2 1 11 42 7 4 8 . 5 . 8 3 . . Allies Corrupted 7 | . . . . . . . . . . . 1 . . . . . . . . 5 . . . 1 . . . Allies Melted 1 | . . . . . . . . . 1 . . . . . . . . . . . . . . . . . . Intel | -11 -10 -10 -8 -8 -6 -6 -6 -6 -6 -5 -5 -5 -5 -5 -4 -4 -4 -4 -4 -4 -3 -3 -3 -2 -2 -1 -1 ------- Run | Yrd Mat Sub Rec Scr Fac Low Low Zio Dee Pro Fac Upp Upp War Pro Fac Ext Cet Arc Hub Res Arm Lab Res Qua Acc Com Active Infowar (turns) 36603 | 550 1360 3453 314 3736 966 790 1207 1471 3141 1240 1978 1102 659 1211 1469 1224 1385 689 289 626 599 2333 617 571 2472 720 431 Optics 25513 | . . 10 254 . . . 1150 1471 3141 1240 1978 1102 659 1211 1469 1224 1385 689 289 626 599 2333 617 571 2472 592 431 Sensors 1193 | . . . . . . . . . . 150 771 . . . . . . . . . . . . . 272 . . IFF 10125 | . . . . . . . . . . . 890 698 655 1211 1469 1224 1345 689 289 626 534 . . . 60 433 2 Zeronet 406 | . . . . . . . . . . . . . . . . . . . . . . . . . 226 180 . Terrain 2 | . . . . 2 . . . . . . . . . . . . . . . . . . . . . . . Structural 4890 | . . . . . 966 . 1151 1471 70 . 1232 . . . . . . . . . . . . . . . . Seismic 19559 | 550 1360 3443 60 3734 806 790 1205 1471 210 1222 1794 981 86 63 . . . . . . 39 1215 . 252 278 . . Cloaking 464 | . . . . . . . . . . . . . . 1 30 34 . . . . 181 111 . 39 27 41 . Jamming 7661 | . . . . . . . . . . . 686 356 . 32 1236 1176 1385 361 . . . 569 617 402 . 413 428 Robot Analysis Total 3 | . 3 . . . . . . . . . . . . . . . . . . . . . . . . . . Derelict Logs Recovered 14 | . . 1 . 5 . 1 2 1 . 1 . 1 . . 2 . . . . . . . . . . . . Drone Launches 84 | . . . . . . . . . . . 3 . 1 1 4 15 12 1 . 5 8 18 . 3 6 5 2 Drone Recoveries 84 | . . . . . . . . . . . 3 . 1 1 3 16 12 1 . 5 8 18 . 3 6 5 2 Exploration | -11 -10 -10 -8 -8 -6 -6 -6 -6 -6 -5 -5 -5 -5 -5 -4 -4 -4 -4 -4 -4 -3 -3 -3 -2 -2 -1 -1 ------------- Run | Yrd Mat Sub Rec Scr Fac Low Low Zio Dee Pro Fac Upp Upp War Pro Fac Ext Cet Arc Hub Res Arm Lab Res Qua Acc Com Turns Passed 42378 | 730 2715 4200 1914 3817 1071 829 1318 1471 3141 1240 1978 1102 659 1211 1469 1224 1385 689 289 626 599 2333 617 571 2472 720 1988 Spaces Moved 20339 | 198 1006 1488 611 2677 671 661 988 1163 2541 527 964 507 363 544 590 562 616 182 49 261 248 916 12 264 977 363 390 Core 129 | 1 . . . 128 . . . . . . . . . . . . . . . . . . . . . . . Treads 1812 | 159 356 529 . . . . . . . . . . . . . . . . . . . . . . 15 363 390 Legs 6540 | . . . . . . . . . 45 . 419 507 363 544 590 562 616 182 49 261 248 916 12 264 962 . . Wheels 10540 | 38 650 959 611 2549 671 661 988 1163 1178 527 545 . . . . . . . . . . . . . . . . Hover . | . . . . . . . . . . . . . . . . . . . . . . . . . . . . Flight 1318 | . . . . . . . . . 1318 . . . . . . . . . . . . . . . . . . Fastest Speed 22 | 50 140 140 140 50 115 121 121 121 22 155 140 176 176 176 176 174 174 174 174 174 174 125 181 124 120 120 120 Average Speed 157 | 144 166 247 210 135 128 121 121 121 104 213 172 193 176 191 181 176 174 174 174 174 174 177 181 136 174 120 125 Slowest Speed 410 | 160 320 320 215 140 155 136 136 121 410 225 240 240 176 219 225 219 174 174 174 175 175 226 181 182 183 120 187 Overloaded Moves 58 | . . . . . . . . . 58 . . . . . . . . . . . . . . . . . . Propulsion Burnouts . | . . . . . . . . . . . . . . . . . . . . . . . . . . . . Robots Hopped 1 | . . . . . . . . . . . . . . . . . . . . . . . . 1 . . . Potential Cave-ins 10 | . . . 4 . . . . . 2 . . . . . . . . . . . . . . . . 4 . Cave-ins Triggered . | . . . . . . . . . . . . . . . . . . . . . . . . . . . . Exploration Rate (%) 57 | 6 96 64 94 86 23 89 95 83 84 78 30 77 62 69 82 23 86 72 81 39 12 66 5 10 57 12 15 Regions Visited 27 Branch Regions 20 Pre-discovered Areas 16 | . 2 . 6 4 . 1 1 2 . . . . . . . . . . . . . . . . . . . Known Exits Taken 15 | . . 1 . 1 1 1 1 . . 1 1 1 . . 1 1 . . . 1 1 . 1 1 1 . . Unknown Exits Taken 12 | 1 1 . 1 . . . . 1 1 . . . 1 1 . . 1 1 1 . . 1 . . . 1 . Scrap Searched 32 | . . 6 . 7 . 4 3 5 . 3 . . 1 . 3 . . . . . . . . . . . . Spaces Dug 257 | . 22 20 36 . 3 . . . 12 13 39 15 4 . 3 33 . . . 4 10 20 . 10 2 11 . Terrain Destroyed 783 | . 33 79 67 . 4 . 4 . 36 17 84 38 6 36 10 49 29 . 3 26 21 108 . 41 21 24 47 Melee 7 | . . . . . . . . . 4 . 2 . . . . . . . . . 1 . . . . . . Projectile 532 | . 33 16 67 . 4 . 4 . 14 4 53 4 6 3 10 37 29 . 3 23 20 79 . 41 21 24 37 AOE 242 | . . 63 . . . . . . 18 13 29 34 . 33 . 12 . . . 3 . 29 . . . . 8 Terrain Rammed . | . . . . . . . . . . . . . . . . . . . . . . . . . . . . Walls Destroyed . | . . . . . . . . . . . . . . . . . . . . . . . . . . . . Machines Disabled . | . . . . . . . . . . . . . . . . . . . . . . . . . . . . Actions | -11 -10 -10 -8 -8 -6 -6 -6 -6 -6 -5 -5 -5 -5 -5 -4 -4 -4 -4 -4 -4 -3 -3 -3 -2 -2 -1 -1 --------- Run | Yrd Mat Sub Rec Scr Fac Low Low Zio Dee Pro Fac Upp Upp War Pro Fac Ext Cet Arc Hub Res Arm Lab Res Qua Acc Com Total 28602 | 591 1607 1746 1001 2888 825 682 1073 1226 2947 608 1180 620 376 690 979 725 857 541 240 371 364 1361 613 387 1686 635 1783 Wait 5157 | 329 330 43 277 67 22 10 32 45 48 28 61 70 6 60 361 78 135 337 171 63 67 114 590 29 509 162 1113 Move 20310 | 197 1005 1487 610 2676 670 660 987 1162 2540 526 963 506 362 543 589 561 615 181 48 260 248 915 11 261 976 362 389 Hop 1 | . . . . . . . . . . . . . . . . . . . . . . . . 1 . . . Pick Up 388 | 8 26 19 5 59 28 2 6 5 91 7 17 6 2 15 4 13 1 . . 4 1 17 . 4 27 3 18 Fast Attach 110 | 6 . . . 8 3 . 1 2 18 3 8 . . 6 . . . 1 3 . 3 17 1 2 13 4 11 Attach 109 | . 3 4 1 6 9 . 2 . 30 3 13 2 . 2 3 2 1 . . . 1 1 . 5 9 3 9 Detach 35 | . . . . . 1 . . . 5 2 3 . . 8 . 1 . . 1 . 1 2 1 4 2 1 3 Swap 440 | 2 43 51 9 3 17 2 6 5 10 1 15 6 3 17 2 21 15 3 . 13 15 64 . 13 53 23 28 Drop 464 | 1 6 15 7 61 23 2 9 7 109 4 17 17 . 23 12 10 1 5 9 2 4 35 10 5 39 5 26 Fire 1435 | 48 194 127 92 8 44 5 19 . 85 34 74 13 3 16 8 39 32 14 8 29 16 148 . 63 58 72 186 Melee 22 | . . . . . . . . . 10 . 4 . . . . . . . . . 8 . . . . . . Ram . | . . . . . . . . . . . . . . . . . . . . . . . . . . . . Kick . | . . . . . . . . . . . . . . . . . . . . . . . . . . . . Crush . | . . . . . . . . . . . . . . . . . . . . . . . . . . . . Escape Stasis 28 | . . . . . 8 . . . . . 5 . . . . . 15 . . . . . . . . . . Rewire 102 | . . . . . . 1 11 . . . . . . . . . 42 . . . . 48 . . . . . Trap 1 | . . . . . . . . . 1 . . . . . . . . . . . . . . . . . . Miscellaneous . | . . . . . . . . . . . . . . . . . . . . . . . . . . . . Route ------- -11/Scrapyard -10/Materials (discovered 6 exits: [*Mat x3] / [*Min x2] / *Sub) -10/Subcaves (discovered 3 exits: Mat x2 / *Rec) -8/Recycling (discovered 2 exits: *Fac / *Scr) -8/Scraptown (discovered 2 exits: *Fac x2) -6/Factory (discovered 4 exits: Fac x2 / *Low x2) -6/Lower Caves -6/Lower Caves (discovered 2 exits: *Fac / *Zio) -6/Zion (discovered 2 exits: [*Dee] / [*Pro]) -6/Deep Caves -5/Proximity Caves -5/Factory (discovered 4 exits: *Fac x2 / *Upp x2) -5/Upper Caves -5/Upper Caves (discovered 2 exits: *Fac / *War) -5/Warlord -4/Proximity Caves -4/Factory (discovered 8 exits: *Res x4 / Upp x2 / *Ext x2) -4/Extension (discovered 3 exits: *Res x2 / *Cet) -4/Cetus (discovered 2 exits: *Res / [*Arc]) -4/Archives (discovered 3 exits: *Res / *Hub x2) -4/Hub_04(d) (discovered 4 exits: *Res x4) -3/Research (discovered 5 exits: Res x3 / *Arm / Tes) -3/Armory (discovered 3 exits: *Res x2 / [*Lab]) -3/Lab -2/Research -2/Quarantine -1/Access -1/Command (discovered 2 exits: [*Sur x2]) 0b11 Command History --------- Turn | Location | Event 26 | -11/Scrapyard | Discovered new exit (range 14) 731 | -11/Scrapyard | Entered Materials 732 | -10/Materials | Build established: Mutant 918 | -10/Materials | Discovered new exit (range 15) 1071 | -10/Materials | Central database locked down 1715 | -10/Materials | Discovered new exit (range 6) 1860 | -10/Materials | Discovered new exit (range 3) 1934 | -10/Materials | Repaired Lgt. Treads 2033 | -10/Materials | Discovered new exit (range 11) 2346 | -10/Materials | Discovered new exit (range 15) 3441 | -10/Materials | Discovered new exit (range 2) 3446 | -10/Materials | Entered Subcaves 4198 | -10/Subcaves | Core integrity fell below 50% 4768 | -10/Subcaves | Visited Clippyterm 4774 | -10/Subcaves | Identified exit to Materials 4774 | -10/Subcaves | Identified exit to Recycling 5008 | -10/Subcaves | A swath of the cavern ceiling suddenly collapsed 5228 | -10/Subcaves | Shifting Twisted Machinery released Sub. Power Source 5234 | -10/Subcaves | Shifting Twisted Machinery released Sub. Monowheel 5635 | -10/Subcaves | Core integrity fell below 20% 6197 | -10/Subcaves | Build established: Scavenger-Mutant 7044 | -10/Subcaves | Ambushed by Subdweller buried in earth 7363 | -10/Subcaves | Build established: Mutant 7646 | -10/Subcaves | Entered Recycling 9062 | -8/Recycling | Discovered new exit (range 5) 9524 | -8/Recycling | Scanned before Scraplab entrance 9546 | -8/Recycling | Entered Scraplab 9558 | -8/Recycling | Discovered new exit (range 2) 9560 | -8/Recycling | Entered Scraptown 9560 | -8/Scraptown | System corruption cleaned by C-Scrubber 9773 | -8/Scraptown | Heard Great Nut preacher, LISTEN AND RECITE! 9779 | -8/Scraptown | Visited Red Mages 9794 | -8/Scraptown | Visited Cave Peace 9818 | -8/Scraptown | Visited Fellowship of the Rings 9836 | -8/Scraptown | Visited Cyclists 9864 | -8/Scraptown | Visited IN-MT5's Study 9876 | -8/Scraptown | Visited The Evicted 9901 | -8/Scraptown | Visited UFD Registry 9901 | -8/Scraptown | Registered with UFD as "Nukedriver" 9969 | -8/Scraptown | Scanned Subdweller tech in exchange for log data 9972 | -8/Scraptown | Learned Research security intel 9975 | -8/Scraptown | Learned location of 1 exit from Research 9976 | -8/Scraptown | Learned location of 2 exits from Lower Caves 9978 | -8/Scraptown | Learned location of 1 exit from Proximity Caves 9995 | -8/Scraptown | Discovered new exit (range 13) 10178 | -8/Scraptown | Entered Cyclist Reading Room 10263 | -8/Scraptown | Visited Junk Repository 10303 | -8/Scraptown | Visited Curators Association 10353 | -8/Scraptown | Visited Scrapoid Pod Storage 10370 | -8/Scraptown | Visited Science Guys 10479 | -8/Scraptown | Visited Research Penetration Think Tank 10782 | -8/Scraptown | Visited Junk Repository 10814 | -8/Scraptown | Visited Cartography Club 10840 | -8/Scraptown | Visited Chapter 10 10866 | -8/Scraptown | Visited DA-N13 Charitable Foundation 10871 | -8/Scraptown | Found DCF Scrap (33 items) 10908 | -8/Scraptown | Visited Botcube Research 11103 | -8/Scraptown | Found Scrapoid Pod 12071 | -8/Scraptown | Found Botcube 12149 | -8/Scraptown | Botcube activated 12173 | -8/Scraptown | Botcube completed mutation into treaded form, armed with 1 gun, 1 cannon. 12349 | -8/Scraptown | Learned location of Warlord (-5) 12349 | -8/Scraptown | Learned 8 Materials zone layouts 12349 | -8/Scraptown | Learned 24 Factory zone layouts 12349 | -8/Scraptown | Learned 8 Research zone layouts 12349 | -8/Scraptown | Learned 16 Research zone layouts 12349 | -8/Scraptown | Learned 8 Lower Caves zone layouts 12349 | -8/Scraptown | Learned 20 Lower Caves zone layouts 12349 | -8/Scraptown | Learned 16 Upper Caves zone layouts 12349 | -8/Scraptown | Learned 8 Proximity Caves zone layouts 12349 | -8/Scraptown | Learned 12 Proximity Caves zone layouts 12349 | -8/Scraptown | Learned Research emergency access door positions 12349 | -8/Scraptown | Learned location of 2 exits from Lower Caves 12349 | -8/Scraptown | Learned location of 1 exit from Upper Caves 12349 | -8/Scraptown | Identified exit to Factory 12361 | -8/Scraptown | Found Deep Structural Scanner 12695 | -8/Scraptown | Attached CPS modules to *Friend Iteration #1 . 13290 | -8/Scraptown | Met Optimus 13290 | -8/Scraptown | Accepted into 0bPrime 13377 | -8/Scraptown | Entered Factory 13377 | -6/Factory | Accompanied by 1 ally 13377 | -6/Factory | Evolved 8 slots: Propulsion x1, Utility x6, Weapon x1 13378 | -6/Factory | Identified exit to Factory 13379 | -6/Factory | Identified exit to Lower Caves 13522 | -6/Factory | Repaired Plasma Cannon 13999 | -6/Factory | Build established: Hacker-Tank 14448 | -6/Factory | Entered Lower Caves 14448 | -6/Lower Caves | Accompanied by 1 ally 14449 | -6/Lower Caves | Identified exit to Lower Caves 15044 | -6/Lower Caves | Encountered a Warlord checkpoint 15277 | -6/Lower Caves | Entered another Lower Caves area 15277 | -6/Lower Caves | Accompanied by 1 ally 15278 | -6/Lower Caves | Identified exit to Zion 15346 | -6/Lower Caves | Scrapoid Pod released 06L05-D (x5) 15641 | -6/Lower Caves | Learned location of Zion (-6) 15754 | -6/Lower Caves | Encountered a Warlord checkpoint 15946 | -6/Lower Caves | Attracted the attention of an 0b10 checkpoint 15968 | -6/Lower Caves | Learned Factory emergency access door positions 16209 | -6/Lower Caves | Spotted B-75 Beast 16372 | -6/Lower Caves | Found Scrap Suit 16595 | -6/Lower Caves | Entered Zion 16595 | -6/Zion | Accompanied by 5 allies 16627 | -6/Zion | Given A8's code to call for help 16646 | -6/Zion | Discovered new exit (range 17) 16925 | -6/Zion | Given the Hacking Drone Bay 17135 | -6/Zion | Learned location of 1 exit from Factory 17175 | -6/Zion | Acquired unknown access codes intercepted by a Zionite 17391 | -6/Zion | Found Prototype Device 17405 | -6/Zion | Identified Hacking Drone Bay 17449 | -6/Zion | Found CR-A16's Pointy Stick 17739 | -6/Zion | Found Prototype Special Weapon 17740 | -6/Zion | Identified RU-N14's Throwing Claymores 17743 | -6/Zion | Found RU-N14's Throwing Claymores 17746 | -6/Zion | Found RU-N14's Throwing Claymores 18011 | -6/Zion | Opened final containment barrier to the Deep Caves 18021 | -6/Zion | Discovered new exit (range 10) 18029 | -6/Zion | Saw the warning signs outside the Deep Caves entrance 18066 | -6/Zion | Entered Deep Caves 18066 | -6/Deep Caves | Accompanied by 5 allies 18179 | -6/Deep Caves | Z-Facility disabled 18225 | -6/Deep Caves | Attacked by Z-Imprinter 18264 | -6/Deep Caves | Destroyed Z-Imprinter 18309 | -6/Deep Caves | Found Prototype Protection 18309 | -6/Deep Caves | Identified Zio. Weapon Casing 18521 | -6/Deep Caves | Build established: Hacker-Mutant 18797 | -6/Deep Caves | Discovered new exit (range 7) 19122 | -6/Deep Caves | Found Prototype Protection 19270 | -6/Deep Caves | Found Zio. Weapon Casing 19284 | -6/Deep Caves | Identified Zio. Heavy Carapace 19577 | -6/Deep Caves | Build established: Scavenger-Mutant 19720 | -6/Deep Caves | Spotted AG-81640 19790 | -6/Deep Caves | Destroyed AG-81640 19966 | -6/Deep Caves | Spotted AG-62341 20013 | -6/Deep Caves | Destroyed AG-62341 20484 | -6/Deep Caves | Found Botcube 21069 | -6/Deep Caves | Triggered Deep Caves wall 21071 | -6/Deep Caves | Exposed GOLEM chamber 21074 | -6/Deep Caves | Found GOLEM Unit 21075 | -6/Deep Caves | Found GOLEM Unit 21207 | -6/Deep Caves | Entered Proximity Caves 21213 | -5/Proximity Caves | Spotter reported a threat 21840 | -5/Proximity Caves | Botcube activated 21844 | -5/Proximity Caves | Botcube completed mutation into core form (unarmed). 21896 | -5/Proximity Caves | Murdered Mutated Botcube 21896 | -5/Proximity Caves | Destroyed Mutated Botcube 21900 | -5/Proximity Caves | Found Botcube 21953 | -5/Proximity Caves | Build established: Scavenger-Tank 22055 | -5/Proximity Caves | Learned Factory interactive machine intel 22447 | -5/Proximity Caves | Entered Factory 22447 | -5/Factory | Evolved 2 slots: Power x1, Utility x1 22448 | -5/Factory | Identified exit to Upper Caves 22449 | -5/Factory | Identified exit to Factory 22451 | -5/Factory | Loaded intel: 53 interactive machine locations 22599 | -5/Factory | Build established: Derelict-Skirmisher 23280 | -5/Factory | Lost 4 parts (1p1n1u1w) 23391 | -5/Factory | Discovered exit to Factory (range 4) 23623 | -5/Factory | Build established: Scavenger-Mutant 23811 | -5/Factory | Fabricated Adv. Shield Generator? 24088 | -5/Factory | Scrapoid reinforcements arrived 24181 | -5/Factory | Scrapoids reinforcements arrived? 24203 | -5/Factory | Lost 5 allies 24425 | -5/Factory | Entered Upper Caves 24426 | -5/Upper Caves | Identified exit to Upper Caves 24433 | -5/Upper Caves | Attracted the attention of an 0b10 checkpoint 24452 | -5/Upper Caves | Lost 3 allies 24532 | -5/Upper Caves | Botcube activated 24552 | -5/Upper Caves | Botcube completed mutation into wheeled form, armed with 2 guns. 24710 | -5/Upper Caves | Learned Factory trap positions 24720 | -5/Upper Caves | Entered a destroyed Warlord outpost 24802 | -5/Upper Caves | Build established: Scavenger-Skirmisher 25317 | -5/Upper Caves | Build established: Golem 25527 | -5/Upper Caves | Entered another Upper Caves area 25527 | -5/Upper Caves | Accompanied by 1 ally 26135 | -5/Upper Caves | Spotted B-75 Beast 26148 | -5/Upper Caves | Discovered new exit (range 13) 26149 | -5/Upper Caves | Encountered a Warlord checkpoint 26186 | -5/Upper Caves | Entered Warlord 26186 | -5/Warlord | Accompanied by 1 ally 26248 | -5/Warlord | System corruption cleaned by Quarantine Array 26324 | -5/Warlord | Found Prototype Device 26325 | -5/Warlord | Identified Thermal Barrier 26347 | -5/Warlord | Found Prototype Device 26347 | -5/Warlord | Identified Exp. Cloaking Device 26358 | -5/Warlord | Found Prototype Reactor 26387 | -5/Warlord | Found Prototype Processor 26387 | -5/Warlord | Identified Exp. Core Analyzer 26829 | -5/Warlord | Warlord's base attacked by MAIN.C 26841 | -5/Warlord | Found Prototype Energy Gun 26841 | -5/Warlord | Identified Vortex Shotgun 26862 | -5/Warlord | Met EX-DEC 26866 | -5/Warlord | Found Prototype Energy Cannon 27173 | -5/Warlord | Spotted Executioner 27179 | -5/Warlord | Warlord forces counterattacked 27192 | -5/Warlord | Spotted Striker 27240 | -5/Warlord | Spotted Executioner 27245 | -5/Warlord | Destroyed Executioner 27275 | -5/Warlord | Spotted Executioner 27277 | -5/Warlord | Spotted Striker 27285 | -5/Warlord | Destroyed Executioner 27309 | -5/Warlord | Lost 11 allies 27310 | -5/Warlord | Found Exp. Core Analyzer 27358 | -5/Warlord | Destroyed 8 combat bots 27361 | -5/Warlord | Discovered new exit (range 12) 27370 | -5/Warlord | Lost 6 allies 27397 | -5/Warlord | Entered Proximity Caves 27397 | -4/Proximity Caves | Accompanied by 1 ally 27402 | -4/Proximity Caves | Spotter reported a threat 27740 | -4/Proximity Caves | Learned Research terminal intel 27902 | -4/Proximity Caves | Spotted B-86 Titan 27927 | -4/Proximity Caves | Allies destroyed B-86 Titan 27966 | -4/Proximity Caves | Discovered exit to Factory (range 17) 28866 | -4/Proximity Caves | Entered Factory 28866 | -4/Factory | Accompanied by 2 allies 28866 | -4/Factory | Evolved 2 slots: Propulsion x1, Utility x1 28867 | -4/Factory | Identified exit to Upper Caves 28868 | -4/Factory | Loaded intel: 99 trap records 28905 | -4/Factory | Garrison activated, responded to threat 28993 | -4/Factory | Found Quantum Capacitor 29299 | -4/Factory | Scrapoids reinforcements arrived? 29324 | -4/Factory | Discovered new exit (range 12) 29346 | -4/Factory | P-70 Sage assimilated allied 04F18-D 29377 | -4/Factory | Attached CPS modules to *Scrapoid +1. 29538 | -4/Factory | Identified exit to Research 29599 | -4/Factory | Build established: Commander-Golem 29812 | -4/Factory | Identified exit to Extension 30069 | -4/Factory | Build established: Golem 30090 | -4/Factory | Entered Extension 30090 | -4/Extension | Accompanied by 1 ally 30642 | -4/Extension | Rescued a captive Derelict 30643 | -4/Extension | Rescued a captive Derelict 30673 | -4/Extension | Rescued a captive Derelict 30674 | -4/Extension | Rescued a captive Derelict 30680 | -4/Extension | Rescued a captive Derelict 30701 | -4/Extension | Rescued a captive Derelict 30720 | -4/Extension | Scrapoids reinforcements arrived? 30906 | -4/Extension | Build established: Commander-Golem 30941 | -4/Extension | Spotted B-86 Titan 30971 | -4/Extension | Allies destroyed B-86 Titan 30979 | -4/Extension | Spotted B-86 Titan 31013 | -4/Extension | Allies destroyed B-86 Titan 31039 | -4/Extension | Lost 4 allies 31090 | -4/Extension | First assault squad dispatched 31155 | -4/Extension | Rescued a captive Derelict 31156 | -4/Extension | Rescued a captive Derelict 31208 | -4/Extension | P-70 Sage assimilated allied H6-157(h) 31243 | -4/Extension | Lost 7 allies 31275 | -4/Extension | Rescued a captive Derelict 31276 | -4/Extension | Rescued a captive Derelict 31357 | -4/Extension | Rescued a captive Derelict 31386 | -4/Extension | Rescued A7 31389 | -4/Extension | Rescued a captive Derelict 31390 | -4/Extension | Rescued a captive Derelict 31438 | -4/Extension | Discovered new exit (range 6) 31475 | -4/Extension | Entered Cetus 31475 | -4/Cetus | Accompanied by 6 allies (A7) 31480 | -4/Cetus | Acquired a Cetus Manufacturing Module code from A7 31492 | -4/Cetus | Spotted Cetus Guard 31494 | -4/Cetus | Build established: Golem 31494 | -4/Cetus | Spotted Cetus Guard 31494 | -4/Cetus | Spotted Cetus Guard 31502 | -4/Cetus | Allies destroyed Cetus Guard 31503 | -4/Cetus | Spotted Cetus Guard 31509 | -4/Cetus | Allies destroyed Cetus Guard 31519 | -4/Cetus | Destroyed Cetus Guard 31524 | -4/Cetus | Allies destroyed Cetus Guard 31616 | -4/Cetus | Started Cetus Manufacturing Module 31626 | -4/Cetus | Discovered new exit (range 21) 31641 | -4/Cetus | Manufactured an Enhanced Grunt 31666 | -4/Cetus | Manufactured an Enhanced Grunt 31691 | -4/Cetus | Manufactured an Enhanced Grunt 31716 | -4/Cetus | Manufactured an Enhanced Grunt 31741 | -4/Cetus | Manufactured an Enhanced Grunt 31763 | -4/Cetus | Escorted A7 to Cetus Mainframe 31815 | -4/Cetus | Spotted Cetus Guard 31816 | -4/Cetus | Spotted Cetus Guard 31817 | -4/Cetus | Spotted Cetus Guard 31825 | -4/Cetus | Spotted Cetus Guard 31830 | -4/Cetus | Discovered exit to Research (range 22) 31832 | -4/Cetus | Allies destroyed Cetus Guard 31843 | -4/Cetus | Destroyed Cetus Guard 31844 | -4/Cetus | Allies destroyed Cetus Guard 31847 | -4/Cetus | Allies destroyed Cetus Guard 31992 | -4/Cetus | Build established: Commander-Golem 32164 | -4/Cetus | Entered Archives 32164 | -4/Archives | Accompanied by 9 allies (A7) 32169 | -4/Archives | Received a hacking code to weaken MAIN.C 32218 | -4/Archives | Discovered new exit (range 22) 32310 | -4/Archives | Discovered exit to Research (range 22) 32310 | -4/Archives | Discovered new exit (range 18) 32453 | -4/Archives | Entered Hub_04(d) 32453 | -4/Hub_04(d) | Accompanied by 7 allies 32892 | -4/Hub_04(d) | Network Hub disabled 32893 | -4/Hub_04(d) | Spotted Lightning 32893 | -4/Hub_04(d) | Spotted Lightning 32893 | -4/Hub_04(d) | Spotted Lightning 32895 | -4/Hub_04(d) | Garrison activated, responded to threat 32909 | -4/Hub_04(d) | Destroyed Lightning 32913 | -4/Hub_04(d) | Destroyed Lightning 32917 | -4/Hub_04(d) | Destroyed Lightning 32929 | -4/Hub_04(d) | Found Botcube 32948 | -4/Hub_04(d) | Lost 5 allies 32953 | -4/Hub_04(d) | First assault squad dispatched 33079 | -4/Hub_04(d) | Entered Research 33079 | -3/Research | Evolved 2 slots: Propulsion x2 33080 | -3/Research | Identified exit to Armory 33081 | -3/Research | Identified exit to Testing 33082 | -3/Research | Identified exit to Research 33085 | -3/Research | Loaded intel: 23 terminal locations 33189 | -3/Research | Build established: Golem 33279 | -3/Research | Revision forces began assault on 0b10 33365 | -3/Research | Met up with Revision 17++ 33437 | -3/Research | Spotted B-86 Titan 33530 | -3/Research | Lost 5 allies 33621 | -3/Research | Revealed the true nature of CR-A16's Pointy Stick 33624 | -3/Research | Destroyed B-86 Titan 33678 | -3/Research | Entered Armory 34115 | -3/Armory | Lost 3 allies 34137 | -3/Armory | Found Prototype Processor 34137 | -3/Armory | Identified Exp. Targeting Computer 34314 | -3/Armory | P-80 Master assimilated allied Veteran 8b 34349 | -3/Armory | Destroyed 10 combat bots 34414 | -3/Armory | Found Gamma Bomb Array 34428 | -3/Armory | First assault squad dispatched 34648 | -3/Armory | Found Gamma Bomb Array 34704 | -3/Armory | Found Prototype Device 34704 | -3/Armory | Identified Exp. Shield Generator 34715 | -3/Armory | Found Prototype Device 34715 | -3/Armory | Identified Exp. Focal Shield 35611 | -3/Armory | Discovered exit to Research (range 3) 35794 | -3/Armory | Found Unknown Device 35794 | -3/Armory | Identified Adv. Force Booster 35893 | -3/Armory | Botcube activated 35905 | -3/Armory | Botcube completed mutation into treaded form, armed with 2 cannons. 36001 | -3/Armory | Discovered new exit (range 3) 36011 | -3/Armory | Entered Lab 36011 | -3/Lab | Accompanied by 1 ally 36011 | -3/Lab | Discovered exit to Research (range 9) 36628 | -3/Lab | Entered Research 36628 | -2/Research | Accompanied by 1 ally 36628 | -2/Research | Evolved 2 slots: Propulsion x1, Weapon x1 36629 | -2/Research | Identified exit to Quarantine 36991 | -2/Research | Found Botcube 37199 | -2/Research | Entered Quarantine 37258 | -2/Quarantine | Cryocooling Duct disabled 37260 | -2/Quarantine | Cryocooling Duct disabled 37266 | -2/Quarantine | Build established: Scavenger-Golem 37273 | -2/Quarantine | Ambient heat levels rising (+20) 37273 | -2/Quarantine | Non-combat units ordered to evacuate 37275 | -2/Quarantine | Ambient heat levels rising (+20) 37275 | -2/Quarantine | Combat units ordered to evacuate 37333 | -2/Quarantine | System corruption reached 10% 37375 | -2/Quarantine | Quarantine Guard activated 37379 | -2/Quarantine | Found Quantum Capacitor 37461 | -2/Quarantine | Spotted Quarantine Guard 37472 | -2/Quarantine | Destroyed Quarantine Guard 37532 | -2/Quarantine | Spotted Quarantine Guard 37551 | -2/Quarantine | Destroyed Quarantine Guard 37670 | -2/Quarantine | Spotted Quarantine Guard 37691 | -2/Quarantine | Destroyed Quarantine Guard 37717 | -2/Quarantine | Identified exit to Access 37761 | -2/Quarantine | Build established: Scavenger-Gunner 37906 | -2/Quarantine | Repaired Lyr. Heavy Armor Plating? 37988 | -2/Quarantine | Spotted Quarantine Guard 38023 | -2/Quarantine | Destroyed Quarantine Guard 38039 | -2/Quarantine | Unchained authorized (DW-4LL) 38051 | -2/Quarantine | Botcube activated 38069 | -2/Quarantine | Botcube completed mutation into treaded form, armed with 2 cannons. 38092 | -2/Quarantine | Spotted Quarantine Guard 38341 | -2/Quarantine | Build established: Scavenger-Tank 38352 | -2/Quarantine | Spotted Quarantine Guard 38359 | -2/Quarantine | Destroyed Quarantine Guard 38360 | -2/Quarantine | Spotted Quarantine Guard 38375 | -2/Quarantine | Allies destroyed Quarantine Guard 38404 | -2/Quarantine | Cryocooling Duct disabled 38410 | -2/Quarantine | DW-4LL burst out of a wall 38419 | -2/Quarantine | Ambient heat levels rising (+20) 38462 | -2/Quarantine | Found Botcube 38533 | -2/Quarantine | Botcube activated 38551 | -2/Quarantine | Botcube completed mutation into treaded form, armed with 2 cannons. 38701 | -2/Quarantine | Spotted Quarantine Guard 38712 | -2/Quarantine | Destroyed Quarantine Guard 39268 | -2/Quarantine | Spotted Quarantine Guard 39359 | -2/Quarantine | DW-4LL burst out of a wall 39396 | -2/Quarantine | Destroyed DW-4LL 39428 | -2/Quarantine | Spotted Quarantine Guard 39437 | -2/Quarantine | Destroyed Quarantine Guard 39444 | -2/Quarantine | Found Prototype Device 39445 | -2/Quarantine | Identified Zeronet Interface 39448 | -2/Quarantine | Found Prototype Ballistic Gun 39509 | -2/Quarantine | Found Quantum Capacitor 39621 | -2/Quarantine | Identified Vortex Chain Reactor 39644 | -2/Quarantine | Found Prototype Treads 39644 | -2/Quarantine | Identified DW-4LL's Griptreads 39671 | -2/Quarantine | Entered Access 39671 | -1/Access | Evolved 2 slots: Weapon x2 39793 | -1/Access | Garrison activated, responded to threat 40170 | -1/Access | Build established: Scavenger-Executioner 40240 | -1/Access | Discovered new exit (range 6) 40391 | -1/Access | Entered Command 40517 | -1/Command | Destroyed 9 combat bots 40708 | -1/Command | Identified DW-4LL's Megashotty 40713 | -1/Command | Spotted M Guard 40713 | -1/Command | Spotted M Guard 40713 | -1/Command | Spotted Combat Programmer 40715 | -1/Command | Spotted Combat Programmer 40831 | -1/Command | Destroyed Combat Programmer 40852 | -1/Command | Destroyed Combat Programmer 40859 | -1/Command | Destroyed M Guard 40867 | -1/Command | System corruption reached 10% 40868 | -1/Command | Destroyed M Guard 40868 | -1/Command | All MAIN.C guards destroyed 40898 | -1/Command | Lost 4 parts (3u1w) 41105 | -1/Command | Identified BFG-9k Vortex Edition 41128 | -1/Command | Met MAIN.C 41134 | -1/Command | Destroyed MAIN.C Shell 41135 | -1/Command | MAIN.C activated Command garrisons 41135 | -1/Command | Destroyed MAIN.C 41152 | -1/Command | Discovered new exit (range 32) 41152 | -1/Command | Discovered new exit (range 98) 41152 | -1/Command | Extracted map data and part IDs from MAIN.C's data core 41165 | -1/Command | Lost 3 parts (3u) 41168 | -1/Command | 0b10 Conduit disabled 41466 | -1/Command | Build established: Scavenger-Mutant 42379 | *** | Establishing 0b11! Last Messages --------------- 42103_ FGLVXXIVDTKB8WHU: 42262_ System corrupted: Matter fused (-7). 42284_ System corrupted: Matter fused (-9). 42284_ Acquired Hvy. Treads. 42286_ Acquired Helical Railgun. 42288_ Acquired Gamma Bomb Array. 42303_ Acquired 70 matter. 42304_ Acquired 86 matter. 42307_ System corrupted: Matter fused (-8). 42315_ Acquired 8 matter. 42328_ System corrupted: Matter fused (-10). 42329_ Acquired 10 matter. 42353_ System corrupted: Matter fused (-9). 42372_ System corrupted: Matter fused (-8). [Achievement: Commander 0b11] Map ----- +----------------------------------------------------+ | ### #??????# #???????????????????????????? | | #?# #??????# #???????????????????????????? | | ###+######## ######??????????????????????? | | ] # #####+## #??????????????????????? | | !# + #??????????????????????? | | # # #############??????????? | | # # # #??????????? | | ##### + # #??????????? | | #??# #### !] # "#??????????? | | #### #??# !] # "#??????????? | | + #??# ]] # "#??????????? | | ########+######## # T#??????????? | | ##?????# # "#??????????? | | #??????# # """" "#??????????? | | #??????# ############# # """" "#??????????? | | #??????# ############# # """" #??????????? | | ######## # """T""" # # """" #??????????? | | # """ """ # # #??????????? | | # # # ! #??????????? | | ### # * + #####+#######??????????? | | ## # # #???????????????? | | ## # # ##### ####????????????? | | ## %* #####+####### #???# #????????????? | | ## = ##### #?????# ###?# #????????????? | | ## #?????# #?# #????????????? | | + #?????# @ #?# #????????????? | | # #?????# #?# #????????????? | | # #?????######?# #????######### | | #######+###### #????????????# #????#???????? | | # # #????????????# #????#?####### | | # # #????????????# #????#?#"""""" | | # # ############## #????#?#"" | | ## # %! % #????#?#""""" | | ?# # !=[! #????#?#"""""" | | ?# # =%* #????#?#" " | | ?# "" # =!* #????#?#"" "" | | ## """" #### #????#?#"" "" | | + """" #??# #????#?# " "" | | ## "" #??# #????#?# " | | ?# #??# ####### #????#?# " | | ?# #??# ##+######## #????#?#"""""" | | ?###"############# ## """ " #????#?#"" | | ???# #??# # ## ""R" =[! ! #????#?#=!! | | ???# #??# # ## "" " [![ #????#?#=%== | | #### #??#"" + + *%!%! ########[*! | | ^^ #??#"" # ## !!=[/! !* ! | | ######??#"T # ## "==!*= ==[ | | ????????#"" # ## # !%!%==%== | | ????????#"" # ##! !#=%%########### """ | | ????????# # ## # !*#######?#?# " " | +----------------------------------------------------+ Best States ------------- Heat Dissipation 90 Coolant Potential 100 Energy Generation 55 Energy Capacity 1700 Matter Stores 447 Matter Capacity 700 Sight Range 22 Robot Scan Range 16 Terrain Scan Density 10 Jamming Range 16 Cloak Strength 6 Armor Coverage 1600 Resistance: KI 15 Resistance: TH 50 Resistance: EX 15 Resistance: EM 15 Resistance: I 15 Resistance: S 15 Resistance: P 15 Core Shielding 30 Weapon Shielding 100 Weapon Cycling 25 Phase Shifting 15 Evasion (%) 70 Core Analysis 8 Recoil Reduction 7 Energy Filtering 30 Particle Charging 30 Offensive Hacking 22 Authchip Count 3 Item Schematics ----------------- Huge Storage Unit | -10/Materials | Hacked Imp. Propulsion Shielding | -8/Recycling | Hacked Hcp. Storage Unit | -8/Recycling | Hacked CPS Tube | -6/Factory | Scanalyzed Cld. Cesium-ion Thruster | -6/Factory | Scanalyzed Flamer | -6/Zion | Free Riot Gun | -6/Zion | Free Beamcaster | -6/Zion | Free Slug Cannon | -6/Zion | Free Ripper | -6/Zion | Free Arc Thrower | -6/Zion | Free Imp. Component Analysis Suite | -6/Zion | Archive Lgt. Angular Momentum Engine | -6/Zion | Archive Adv. Coolant Injector | -6/Zion | Archive Hvy. Gauss Cannon | -6/Zion | Archive Coil Gun | -6/Zion | Archive Lyr. Heavy Armor Plating | -6/Zion | Archive Energy Well | -6/Zion | Archive Imp. Kinecellerator | -6/Zion | Archive Imp. Launcher Guidance Computer | -6/Zion | Archive Power Amplifier | -6/Zion | Archive Angular Momentum Engine | -6/Zion | Archive Mni. Drone Bay | -6/Zion | Archive Hpw. Shock Rifle | -6/Zion | Archive Imp. Weapon Cycler | -6/Zion | Archive Phase Shifter | -6/Zion | Archive Robot Schematics ------------------ M-14 Sweeper | -6/Zion | Archive T-07 Excavator | -6/Zion | Archive L-41 Fighter | -6/Zion | Archive Fabricated ------------ Adv. Shield Generator | x2 | -5/Factory | Preloaded Repaired ---------- Lgt. Treads | 42% | -10/Materials Plasma Cannon | 54% | -6/Factory Lyr. Heavy Armor Plating | 37% | -2/Quarantine Studied --------- Wheel | -6/Factory | Hacked Lrn. Missile Launcher | -6/Factory | Hacked Lgt. Fission Core | -6/Factory | Hacked Alien Tech Used ----------------- None Achievements -------------- Bigger And Badder Commander 0b11 Do Not Disturb Equal Opportunity Bot Frankenstein King Drone The Slayer Has Control Well-fed Force Field Challenges ------------ None Game ------ Seed ColdInsulatedCartridge Manual? 0 Play Time 07:59:42 Cumulative 251.6 hours Start 2025.11.07 @ 03:13:03 End 2025.11.09 @ 13:03:24 Sessions 12 Manual Loads 0 Difficulty Rogue Special Mode None Game No. 71 Rogue 65 Adventurer 0 Explorer 6 Win Type 1 Total 14 Types 6/1/2/1/1/0/1/1/0/1 Lore% 81 Gallery% 74 Achievement% 57 Wizard Run 0 Options --------- Layout 1 ASCII 0 Keyboard 0 Movement Mouse Keybinds 0 Fullscreen 2 Font 24/Smallcaps Map View 50x35 Zoom Use 0% Tactical HUD 1 Map Filters NONE Filters NONE Steam 1 RUN: 31d613bf-d2c6-4533-9328-c6bdd8e33024